{"text_format":"1","workbook":"xlsx","n_sheets":13,"sheets":["Biztosítási termékismertető 1","Biztosítási termékismertető 2","Biztosítási termékismertető 3","Díjösszesítő","ELBER","Géptörés","All Risks Gépbiztosítás","Társbiztosítotti nyilatkozat","Zálogkötelezetti nyilatkozat","Verzió","elberlista","geptoreslista","allrisklista"],"not_rendered":{"charts":0,"images":52,"macros":1,"external_links":0,"defined_names":78,"comments":0,"pivot_tables":0},"unopened":[],"bounds":{"document_bytes":16777216,"sheet_cells":100000,"rows_first":2000,"rows_last":500,"rows_between":2000,"halvings":0,"cell_chars":16384,"cell_head_chars":4096},"cells_cut":0,"cells_raw":0,"read":"whole","date_system":"1900"}

{"sheet":"Biztosítási termékismertető 1","index":0,"n_rows":0,"n_cols":0,"rows_kept":0,"cut":false,"hidden":false,"merged":[]}

{"sheet":"Biztosítási termékismertető 2","index":1,"n_rows":0,"n_cols":0,"rows_kept":0,"cut":false,"hidden":false,"merged":[]}

{"sheet":"Biztosítási termékismertető 3","index":2,"n_rows":0,"n_cols":0,"rows_kept":0,"cut":false,"hidden":false,"merged":[]}

{"sheet":"Díjösszesítő","index":3,"n_rows":200,"n_cols":42,"rows_kept":200,"cut":false,"hidden":false,"merged":[[157,18,157,26],[157,31,157,39],[38,35,38,40],[38,6,38,11],[155,4,155,10],[155,12,155,15],[147,7,147,40],[98,26,98,30],[92,26,92,30],[93,26,93,30],[94,26,94,30],[95,26,95,30],[96,26,96,30],[107,23,107,25],[110,26,110,30],[43,28,43,40],[46,33,46,36],[108,26,108,30],[100,26,100,30],[104,26,104,30],[105,26,105,30],[106,26,106,30],[97,26,97,30],[57,7,57,40],[50,33,50,36],[72,12,72,40],[82,12,82,16],[43,16,43,23],[46,2,46,4],[50,2,50,4],[50,7,50,16],[50,20,50,30],[49,8,49,10],[46,20,46,30],[46,7,46,16],[59,4,59,6],[59,9,59,17],[59,21,59,31],[59,34,59,36],[69,12,69,40],[34,34,34,40],[1,39,1,41],[2,39,2,41],[3,21,6,32],[16,3,16,16],[18,2,18,40],[8,0,8,6],[34,5,34,8],[19,2,19,40],[34,15,34,27],[23,2,24,40],[21,2,22,40],[36,6,36,7],[104,23,104,25],[105,23,105,25],[92,7,92,25],[93,7,93,25],[94,7,94,25],[95,7,95,25],[96,7,96,25],[97,7,97,25],[98,7,98,25],[36,15,36,19],[41,11,41,40],[43,6,43,12],[51,6,51,7],[53,21,53,26],[36,37,36,40],[121,3,121,9],[106,23,106,25],[112,2,113,40],[156,31,156,39],[140,2,142,40],[144,2,144,40],[156,18,156,26],[123,3,123,4],[107,26,107,30],[145,7,145,40],[146,7,146,40],[152,2,152,40]]}
[]
[null,null,null,null,null,null,null,null,null,null,null,null,null,null,null,null,"Választható kedvezmények:",null,null,null,null,null,null,null,null,null,null,null,null,null,null,null,null,null,null,null,null,null,"Előzetes kármentességi engedmény:"]
[null,null,null,null,null,null,null,null,null,null,null,null,null,null,null,null,"Díjfizetési engedmény",null,null,null,null,null,null,null,null,null,null,null,null,null,null,null,null,null,null,null,null,null,"Egyedi engedmény:"]
[null,null,null,null,null,null,null,null,null,null,null,null,null,null,null,null,null,null,null,null,null,"60 E és 100 E Ft közötti éves díj esetén a gyakoriság választható, de díjkedvezmény nincs! (60 E Ft alatt csak éves lehet)"]
[null,null,null,null,null,null,null,null," "]
[]
[]
[]
[]
[]
[]
[]
[]
[]
[]
[]
[null,null,null,"Kötvényszám: "]
[]
[null,null,"BIZTOSÍTÁSI KÖTVÉNY"]
[null,null,{"$f":"IFERROR(IF(A176=1,\"Elektromos és elektronikus gépek és berendezések biztosítása\",IF(A176=2,\"Gép-, géptörés-biztosítás\",\"All Risks Gépbiztosítás\")),\"Elektromos és elektronikus gépek és berendezések biztosítására\")","v":"All Risks Gépbiztosítás"}]
[]
[null,null,"Jelen biztosítási kötvénnyel az UNION Vienna Insurance Group Biztosító Zrt. vállalja, hogy az előírt és esedékes biztosítási díj megfizetése ellenében biztosítási fedezetet nyújt a biztosítottnak a biztosítási szabályzatokban, feltételekben vállalt kockázatokra."]
[]
[null,null,"A kötvény a Partner által előzetesen aláírt ajánlat alapján készült és a kötvény mellékletét képező aktuális részletezővel, szabályzattal, feltétellel és záradékokkal együtt érvényes."]
[]
[]
[]
[]
[]
[]
[null,null,null,null,null,null,null,null,null,null,null,null,null,null,null,null,null,null,null,null,null,null,null,null,null,null,null,null,null,null,null,null,null,null,null,null,null,null,null,null,null,{"$f":"IFERROR(IF(A176=1,\"Elektromos és elektronikus gépek és berendezések biztosítása\",IF(A176=2,\"Gép-, géptörés-biztosítás\",\"All Risks Gépbiztosítás\")),\"Elektromos és elektronikus gépek és berendezések biztosítására\")","v":"All Risks Gépbiztosítás"}]
[null,null,null,null,null,null,null,null,null,null,null,null,null,null,null,null,null,null,null,null,null,null,null,null,null,null,null,null,null,null,null,null,null,null,null,null,null,null,null,null,null,"Biztosítási Ajánlat"]
[]
[]
[null,null,"Módozat:",null,null,7807,null,null,null,null,"Üzletkötő neve:",null,null,null,null,null,null,null,null,null,null,null,null,null,null,null,null,null,null,"Üzletkötő kódja:"]
[]
[null,null,"Átdolgozás: ",null,null,null,"nem",null,null,null,null,null,null,null,"Előzmény kötv.száma:",null,null,null,null,null,null,"Adóigazgatási szám: 1049 1984-2-44   ",null,null,null,null,null,null,null,null,null,null,"Ajánlat azonosító:"]
[]
[null,null,"Készítette:",null,null,null,"Ambrus Péter",null,null,null,null,null,null,{"$f":"CONCATENATE(\"Tel: \",IFERROR(VLOOKUP(G39,C194:K205,7,FALSE),\"\"),\"     E-mail: \",IFERROR(VLOOKUP(G39,C194:K205,4,FALSE),\"\"))","v":"Tel: 666-7656     E-mail: ambrus.peter@unionbiztosito.hu"},null,null,null,null,null,null,null,null,null,null,null,null,null,null,null,null,null,null,"Hiv.szám:"]
[]
[]
[null,null,"Szerződő / Biztosított neve:"]
[]
[null,null,"Adószáma:",null,null,null,null,null,null,null,null,null,null,null,null,"Tel:",null,null,null,null,null,null,null,null,null,null,null,"E-mail:"]
[]
[null,null,"Székhelye:"]
[null,null,null,null,null,"ir.sz.",null,null,null,null,null,null,null,null,null,null,null,"helység",null,null,null,null,null,null,null,null,null,null,null,null,null,"közter.:",null,null,null,null,null,"hsz.em.ajtó"]
[]
[null,null,"Levelezési Címe:"]
[null,null,"Biztosított neve:"]
[null,null,null,null,null,"ir.sz.",null,null,null,null,null,null,null,null,null,null,null,"helység",null,null,null,null,null,null,null,null,null,null,null,null,null,"közter.",null,null,null,null,null,"hsz.em.ajtó"]
[null,null,"Adószáma:",null,null,null,null,null,null,null,null,null,null,null,null,"Tel:",null,null,null,null,null,null,null,null,null,null,null,"E-mail:"]
[]
[null,null,null,null,null,null,null,"ír.sz.",null,null,null,null,null,null,null,null,null,null,"helység",null,null,null,null,null,null,null,null,null,null,null,null,null,"utca",null,null,null,null,"hsz.em.ajtó"]
[]
[]
[]
[null,null,"Hitelező:"]
[]
[null,null,"Címe:",null,null,null,null,"ír.sz.",null,null,null,null,null,null,null,null,null,null,"helység",null,null,null,null,null,null,null,null,null,null,null,null,null,"utca",null,null,null,null,"hsz.em.ajtó"]
[]
[]
[]
[]
[]
[]
[]
[]
[]
[null,null,"Biztosított tevékenység(ek):"]
[]
[]
[null,null,"Kockázatviselés helye:"]
[]
[null,null,null,null,"Területi hatály:",null,null,null,null,null,null,null,{"$f":"IF(AND('All Risks Gépbiztosítás'!U6,ajanlat.fajtaja=3),\"Magyarország, azon belül a munkavégzés helye\",\"A telephely, mint kockázatviselés helye\")","v":"Magyarország, azon belül a munkavégzés helye"}]
[]
[]
[null,null,null,null,"Biztosítási időszak:"]
[null,null,null,null,"Biztosítás tartama:",null,null,null,null,null,null,null,"határozatlan, melyen belül a biztosítási időszak 1 év"]
[]
[null,null,null,null,"Biztosítási évforduló:"]
[]
[null,null,null,null,"Kockázatviselés kezdete:",null,null,null,null,null,null,null,null,null,null,null,null,",","de legkorábban az elfogadott ajánlat biztosító kötvénykiállításra jogosult"]
[null,null,null,null,null,null,null,null,null,null,null,null," szervezeti egységéhez történő visszaérkezését követő nap 0.00 órája"]
[null,null,null,"Díjfizetés kezdete:",null,{"$f":"S83","v":"de legkorábban az elfogadott ajánlat biztosító kötvénykiállításra jogosult"}]
[null,null,null,null,"Díjfizetés gyakorisága:",null,null,null,null,null,null,null,{"$f":"IF(csak.eves.dij=1,H176,IF(F176=TRUE,H176,IF(F177=TRUE,H177,IF(F178=TRUE,H178))))","v":"éves"}]
[]
[null,null,null,null,"Díjfizetés módja:",null,null,null,null,null,null,null,"a biztosító által kiállított számviteli bizonylat alapján, átutalással"]
[]
[]
[null,null,null,null,null,null,null,"Biztosítási díj összesítő "]
[]
[null,null,null,null,null,null,null,"Elektromos és elektronikus gépek és berendezések biztosítása",null,null,null,null,null,null,null,null,null,null,null,null,null,null,null,null,null,null,{"$f":"IF(ELBER!M41=0,0,ELBER!F47)","v":0}]
[null,null,null,null,null,null,null,"Géptörésbiztosítás",null,null,null,null,null,null,null,null,null,null,null,null,null,null,null,null,null,null,{"$f":"IF(Géptörés!M44=0,0,Géptörés!F51)","v":0}]
[null,null,null,null,null,null,null,"All Risks Gépbiztosítás",null,null,null,null,null,null,null,null,null,null,null,null,null,null,null,null,null,null,{"$f":"IF('All Risks Gépbiztosítás'!M44=0,0,'All Risks Gépbiztosítás'!I56)","v":0}]
[null,null,null,null,null,null,null,"pótdíj szállítási kockázatra:",null,null,null,null,null,null,null,null,null,null,null,null,null,null,null,null,null,null,{"$f":"'All Risks Gépbiztosítás'!Z63","v":0}]
[null,null,null,null,null,null,null,"pótdíj lopás kockázatra:",null,null,null,null,null,null,null,null,null,null,null,null,null,null,null,null,null,null,{"$f":"'All Risks Gépbiztosítás'!Z62","v":0}]
[null,null,null,null,null,null,null,"pótdíj közúti forgalmi kiterjesztésre:",null,null,null,null,null,null,null,null,null,null,null,null,null,null,null,null,null,null,{"$f":"'All Risks Gépbiztosítás'!I52","v":0}]
[null,null,null,null,null,null,null,"pótdíj kölcsöngép többletktsg. fed.-re:",null,null,null,null,null,null,null,null,null,null,null,null,null,null,null,null,null,null,{"$f":"'All Risks Gépbiztosítás'!I53","v":0}]
[]
[null,null,null,null,null,null,null,"Éves díj:",null,null,null,null,null,null,null,null,null,null,null,null,null,null,null,null,null,null,{"$f":"IF(elber=TRUE,AA93,IF(geptores=TRUE,AA94,IF(allrisk=TRUE,AA95)))","v":0}]
[]
[null,null,null,null,null,null,null,"Egyedi engedmény:",null,null,null,null,null,null,null,null,null,null,null,null,null,null,null,null,null,null,null,null,null,null,0]
[null,null,null,null,"Engedmények:"]
[null,null,null,null,null,null,null,"Egyedi engedmény:",null,null,null,null,null,null,null,null,null,null,null,null,null,null,null,{"$f":"AN3","v":0},null,null,{"$f":"IF(OR($AA$101=0,X105=0),\"\",$AA$101*X105)","v":""}]
[null,null,null,null,null,null,null,"Tartamengedmény (3 év esetén)",null,null,null,null,null,null,null,null,null,null,null,null,null,null,null,{"$f":"IF(F182=TRUE,G182,0)","v":0},null,null,{"$f":"IF(OR($AA$101=0,X106=0),\"\",$AA$101*X106)","v":""}]
[null,null,null,null,null,null,null,"Megelőlegezett kármentességi eng.:",null,null,null,null,null,null,null,null,null,null,null,null,null,null,null,{"$f":"AN2","v":0},null,null,{"$f":"IF(OR($AA$101=0,X107=0),\"\",$AA$101*X107)","v":""}]
[null,null,null,null,null,null,null,"Díjfizetési gyakoriság engedménye:",null,null,null,null,null,null,null,null,null,null,null,null,null,null,null,{"$f":"IF(AA101<100000,0,IF(F176=TRUE,G176,IF(F177=TRUE,G177,IF(F178=TRUE,G178))))","v":0},null,null,{"$f":"IF(OR($AA$101=0,X108=0),\"\",$AA$101*X108)","v":""}]
[null,null,null,null,null,null,null,"Engedménnyel csökkentett éves díj:",null,null,null,null,null,null,null,null,null,null,null,null,null,null,null,null,null,null,{"$f":"IF(F172=0,0,IF(AND(elber,F172<elbermindij),elbermindij,IF(AND(geptores,F172<gepmindij),gepmindij,IF(AND(allrisk,F172<zaradekosmin),zaradekosmin,F172))))","v":0},null,null,null,null,null,{"$f":"IF(F172=0,\"\",IF(AND(elber,F172<25000),\"Minimum díj!\",IF(AND(geptores,F172<30000),\"Minimum díj!\",IF(AND(allrisk,F172<zaradekosmin),\"Minimum díj!\",\"\"))))","v":""}]
[]
[null,null,null,null,null,null,null,"Gyakoriság szerint fizetendő díj:",null,null,null,null,null,null,null,null,null,null,null,null,null,null,null,null,null,null,{"$f":"IF(F176,AA109,IF(F177,AA109/2,IF(F178,AA109/4,\"\")))","v":0},null,null,null,null,null,"/ gyakoriság"]
[]
[null,null,"Ajánlattétel esetén kérjük az ajánlatot az ügyfél cégszerű aláírásával ellátva részünkre visszaküldeni. Amennyiben az abban és a biztosítási ajánlatban felsorolt dokumentumok bármelyikével nem rendelkeznek, kérjük, jelezzék felénk."]
[]
[]
[null,null,"Előzetes díjajánlatunk 30 napig érvényes."]
[]
[null,null,"Tisztelettel:",null,null,null,null,null,null,null,null,null,null,null,null,null,null,null,null,null,null,null,null,null,null,null,"UNION Vienna Insurance Group Biztosító Zrt."]
[]
[]
[]
[]
[]
[]
[]
[null,null,null,null,null,"A biztosított három alábbi mutatója közül legalább kettő meghaladja-e a következő értékeket:"]
[null,null,null,null,null,null,null,"Mérleg főösszege az 1,5 mrd. Ft-ot"]
[null,null,null,null,null,null,null,"Nettó üzleti forgalma a 3 mrd. Ft-ot"]
[null,null,null,null,null,null,null,"Átlagos alkalmazotti létszám az 1.000 főt"]
[]
[]
[]
[null,null,null,null,null,"Szerződőként ezúton nyilatkozom, hogy Társaságunk:"]
[]
[]
[]
[]
[null,null,null,null,null,"minősül."]
[]
[]
[null,null,"Ajánlatot teszek a fent részletezett biztosításra, amelynek alapján az UNION Vienna Insurance Group Biztosító Zrt. azt a kötelezettséget vállalja, hogy díjfizetés ellenében készpénzben megtéríti a különös feltételekben felsorolt biztosítási események során bekövetkező azon károkat, amelyekre a biztosítási szerződés kiterjed. "]
[]
[]
[]
[null,null,"Tudomásul veszem, hogy: - jelen ajánlat a biztosító kockázat-elbírálásának alapja, továbbá, hogy a biztosító kötvény kiállításra jogosult szervezeti                                                                       egységének az ajánlat beérkezésétől számított 15 nap áll rendelkezésére a kockázat elbírálására,"]
[null,null,null,null,null,null,null,"- a biztosító a kockázatelbírálás eredményeként az ajánlatot jogosult elutasítani, az elutasítást nem köteles megindokolni,"]
[null,null,null,null,null,null,null,"- a biztosító kártérítése - betöréses lopás esetén - a kár időpontjában fennálló vagyonvédelmi színvonal függvényében történik       \n"]
[null,null,null,null,null,null,null,"- a biztosító a tényleges adatoktól való eltérés esetén az alul- és túlbiztosítottságot vizsgálja       \n"]
[]
[null,null,"Kijelentem, hogy:",null,null,null,null,"- az ajánlattétel előtt biztosítási igényem felmérése nyomán a vonatkozó termékismertetőket átvettem, áttanulmányoztam és megértettem,"]
[null,null,null,null,null,null,null,"- a jogszabályban előírt tájékoztatást megkaptam,"]
[null,null,null,null,null,null,null,"- jelen ajánlatomban minden biztosítási szándékommal kapcsolatos igényemet rögzítettek, más szóbeli megállapodás nem történt."]
[null,null,"Kijelentem, hogy az Adatkezelési tájékoztató a biztosítási ajánlat aláírását megelőzően részemre átadásra került, és tudomással bírok arról, hogy ezen dokumentum a biztosító honlapján (www.union.hu) bármikor megtekinthető."]
[]
[]
[null,null,null,"Kelt:",{"$f":"szerz.helys","v":0},null,null,null,null,null,null,",",{"$f":"TODAY()","v":"2021-07-01"}]
[]
[null,null,null,null,null,null,null,null,null,null,null,null,null,null,null,null,null,null,"Biztosításközvetítő aláírása",null,null,null,null,null,null,null,null,null,null,null,null,"Szerződő cégszerű aláírása"]
[]
[]
[]
[]
[]
[]
[]
["Elber, Géptörés, All risk",null,null,null,null,"Engedménnyel csökkentett éves díj sor:"]
[false,null,null,null,null,{"$f":"IF(F182,1,IF(AND(elozetes.engedmeny<>\"\",elozetes.engedmeny<>0),1,IF(AND(uzleti.engedmeny<>\"\",uzleti.engedmeny<>0),1,0)))","v":0}]
[false]
[true]
[]
["Előzetes kármentességi",null,null,null,null,"Végösszeg"]
[0.1,null,null,null,null,{"$f":"(AA101*(1-(AE103+X105+X106+X107+X108)))","v":0}]
[0.15]
[]
["Ajánlat fajtája",null,null,null,null,"Díjfizetés:"]
[3,null,null,null,null,true,0.05,"éves"]
[null,null,null,null,null,false,2.5000000000000001E-2,"féléves"]
["Biztosított a szerződő",null,null,null,null,false,0,"negyedéves"]
[false]
[]
["Hitel",null,null,null,null,"tartamengedmény"]
[false,null,null,null,null,false,0.1]
[]
["Lízing"]
[false,null,null,null,null,{"$f":"AA101","v":0}]
[null,null,null,null,null,{"$f":"IF(F185<G186,1,0)","v":1},60000,"<-- e díj alatt megbontani sem lehet a díjat (csak éves)"]
[]
[]
["igen"]
["nem"]
[]
[]
[]
[null,null,"Ambrus Péter",null,null,"ambrus.peter@unionbiztosito.hu",null,null,"666-7656"]
[null,null,"Árokszállási Zoltán",null,null,"ajanlatkeres@unionbiztosito.hu",null,null,"486-4366"]
[null,null,"Csanádi Zoltán",null,null,"csanadi.zoltan@unionbiztosito.hu",null,null,"486-4235"]
[null,null,"Dobi László",null,null,"dobi.laszlogabor@unionbiztosito.hu",null,null,"486-4346"]
[null,null,"Hajdók Viktória",null,null,"hajdok.viktoria@unionbiztosito.hu",null,null,"486-4213"]
[null,null,"Klinger József",null,null,"klinger.jozsef@unionbiztosito.hu",null,null,"486-4232"]
[null,null,"Utry Oszkár",null,null,"ajanlatkeres@unionbiztosito.hu",null,null,"486-4215"]

{"sheet":"ELBER","index":4,"n_rows":193,"n_cols":28,"rows_kept":193,"cut":false,"hidden":true,"merged":[[29,3,29,4],[35,3,35,4],[36,3,36,4],[37,3,37,4],[38,3,38,4],[30,3,30,4],[31,3,31,4],[32,3,32,4],[33,3,33,4],[34,3,34,4],[128,3,131,12],[134,3,134,12],[162,3,162,13],[174,8,174,11],[138,7,138,12],[139,7,139,12],[4,3,4,8],[19,4,19,7],[19,9,19,10],[110,3,110,13],[10,3,10,11],[50,4,51,11],[71,3,71,11],[20,3,20,4],[21,3,21,4],[22,3,22,4],[23,3,23,4],[24,3,24,4],[25,3,25,4],[26,3,26,4],[27,3,27,4],[28,3,28,4],[32,9,32,11],[38,9,38,11],[39,9,39,11],[33,9,33,11],[34,9,34,11],[35,9,35,11],[36,9,36,11],[37,9,37,11],[27,9,27,11],[28,9,28,11],[29,9,29,11],[30,9,30,11],[31,9,31,11],[125,3,125,12],[46,7,46,8],[111,3,111,11],[40,5,40,8],[42,5,42,6],[121,3,121,12],[116,3,116,12],[118,3,119,12],[112,3,112,11],[122,3,122,12],[9,0,117,0],[75,4,76,11],[98,3,99,3],[98,5,99,5],[46,5,46,6],[39,3,39,4],[18,9,18,11],[20,9,20,11],[21,9,21,11],[22,9,22,11],[23,9,23,11],[24,9,24,11],[25,9,25,11],[26,9,26,11],[18,3,18,4],[15,5,15,12]]}
["ELBER biztosítás"]
[]
[null,"Géplista:"]
[]
[null,"Biztosított gépkategória:",null,"grafikai, nyomdatechnikai eszközök"]
[]
[null,"Önrész:",null,"10%, de min."]
[]
[null,null,null,null,null,null,null,null,null,null,null,null,null,null,null,null,null,null,null,null,false]
[" ELBER"]
[null,null,null,"Elektromos és elektronikus gépek és berendezések biztosítása"]
[]
[null,null,null,"I. Dologi károk biztosítása"]
[]
[]
[null,null,null,"Biztosított kockázatok:",null,"Ha a kár oka: a biztosított vagyontárgyakban előre nem látható,véletlenül, váratlanul bekövetkezett fizikai károsodás, mellyel kapcsolatban a biztosító a kártérítési kötelezettségét nem zárta ki.",null,null,null,null,null,null,null,null,null,null,null,null,null,null,"Értékelés alapja"]
[null,null,null,null,null,null,null,null,null,null,null,null,null,null,null,null,null,null,null,null,"új érték"]
[null,null,null,"Géplista",null,null,null,null,null,null,null,null,null,null,null,null,null,null,null,null,"műszaki avult"]
[null,null,null,"Megnevezés",null,"Gyártmány, Típus","Azonosító szám","Gyárt. év","Egyedi gépérték (bizt. összeg)","Értékelés alapja",null,null,"Alapdíj (Ft)",null,"Gépcsoport",null,null,null,50000000,"Gépcsoport",null,null,"Alapdíj"]
[null,null,null,null,"Az ajánlatkéréshez csatolt adatközlő szerint",null,null,null,null,0,null,null,"új érték",null,null,null,null,null,500000000]
[null,null,null,null,null,null,null,null,null,null,null,null,{"$f":"IF(AND($M$41=elbermindij,W21<>\"\",W21>0),\"Minimum díj!\",W21)","v":""},null,{"$f":"IF(AND(U21>2,U21<12),_ize,IF(AND(U21>12,U21<22),_ize2,IF(AND(U21>22,U21<28),_ize3,IF(AND(U21>28,U21<42),_ize4,\"\"))))","v":""},null,null,null,500000000,"",{"$f":"IFERROR(VLOOKUP(T21,elberlista!$A$3:$B$45,2,FALSE),0)","v":0},{"$f":"IF(O21=$V$179,$V$180,IF(O21=$W$179,$W$180,IF(O21=$X$179,$X$180,IF(O21=$Y$179,$Y$180))))*IF(I21<=$U$180,$AB$180,IF(I21<=$U$181,$AB$181,IF(I21<=$U$182,$AB$182,IF(I21<=$U$183,$AB$183,IF(I21<=$U$184,$AB$184,\"túl nagy a biztosítási összeg\")))))*$X$186","v":0},{"$f":"IF($F$41>$S$21,0,IF(V21=0,IF(I21>0,0,\"\"),I21*V21/1000))","v":""}]
[null,null,null,null,null,null,null,null,null,null,null,null,"",null,"",null,null,null,null,"",{"$f":"IFERROR(VLOOKUP(T22,elberlista!$A$3:$B$45,2,FALSE),0)","v":0},{"$f":"IF(O22=$V$179,$V$180,IF(O22=$W$179,$W$180,IF(O22=$X$179,$X$180,IF(O22=$Y$179,$Y$180))))*IF(I22<=$U$180,$AB$180,IF(I22<=$U$181,$AB$181,IF(I22<=$U$182,$AB$182,IF(I22<=$U$183,$AB$183,IF(I22<=$U$184,$AB$184,\"túl nagy a biztosítási összeg\")))))*$X$186","v":0},{"$f":"IF($F$41>$S$21,0,IF(V22=0,IF(I22>0,0,\"\"),I22*V22/1000))","v":""}]
[null,null,null,null,null,null,null,null,null,null,null,null,"",null,"",null,null,null,null,"",{"$f":"IFERROR(VLOOKUP(T23,elberlista!$A$3:$B$45,2,FALSE),0)","v":0},0,""]
[null,null,null,null,null,null,null,null,null,null,null,null,"",null,"",null,null,null,1,"",{"$f":"IFERROR(VLOOKUP(T24,elberlista!$A$3:$B$45,2,FALSE),0)","v":0},0,""]
[null,null,null,null,null,null,null,null,null,null,null,null,"",null,"",null,null,null,null,"",{"$f":"IFERROR(VLOOKUP(T25,elberlista!$A$3:$B$45,2,FALSE),0)","v":0},0,""]
[null,null,null,null,null,null,null,null,null,null,null,null,"",null,"",null,null,null,null,"",{"$f":"IFERROR(VLOOKUP(T26,elberlista!$A$3:$B$45,2,FALSE),0)","v":0},0,""]
[null,null,null,null,null,null,null,null,null,null,null,null,"",null,"",null,null,null,null,"",{"$f":"IFERROR(VLOOKUP(T27,elberlista!$A$3:$B$45,2,FALSE),0)","v":0},0,""]
[null,null,null,null,null,null,null,null,null,null,null,null,"",null,"",null,null,null,null,"",{"$f":"IFERROR(VLOOKUP(T28,elberlista!$A$3:$B$45,2,FALSE),0)","v":0},0,""]
[null,null,null,null,null,null,null,null,null,null,null,null,"",null,"",null,null,null,"Gyártási év lista","",{"$f":"IFERROR(VLOOKUP(T29,elberlista!$A$3:$B$45,2,FALSE),0)","v":0},0,""]
[null,null,null,null,null,null,null,null,null,null,null,null,"",null,"",null,null,null,{"$f":"YEAR(TODAY())","v":2021},"",{"$f":"IFERROR(VLOOKUP(T30,elberlista!$A$3:$B$45,2,FALSE),0)","v":0},0,""]
[null,null,null,null,null,null,null,null,null,null,null,null,"",null,"",null,null,null,{"$f":"S30-1","v":2020},"",{"$f":"IFERROR(VLOOKUP(T31,elberlista!$A$3:$B$45,2,FALSE),0)","v":0},0,""]
[null,null,null,null,null,null,null,null,null,null,null,null,"",null,"",null,null,null,{"$f":"S31-1","v":2019},"",{"$f":"IFERROR(VLOOKUP(T32,elberlista!$A$3:$B$45,2,FALSE),0)","v":0},0,""]
[null,null,null,null,null,null,null,null,null,null,null,null,"",null,"",null,null,null,2018,"",{"$f":"IFERROR(VLOOKUP(T33,elberlista!$A$3:$B$45,2,FALSE),0)","v":0},0,""]
[null,null,null,null,null,null,null,null,null,null,null,null,"",null,"",null,null,null,2017,"",{"$f":"IFERROR(VLOOKUP(T34,elberlista!$A$3:$B$45,2,FALSE),0)","v":0},0,""]
[null,null,null,null,null,null,null,null,null,null,null,null,"",null,"",null,null,null,2016,"",{"$f":"IFERROR(VLOOKUP(T35,elberlista!$A$3:$B$45,2,FALSE),0)","v":0},0,""]
[null,null,null,null,null,null,null,null,null,null,null,null,"",null,"",null,null,null,2015,"",{"$f":"IFERROR(VLOOKUP(T36,elberlista!$A$3:$B$45,2,FALSE),0)","v":0},0,""]
[null,null,null,null,null,null,null,null,null,null,null,null,"",null,"",null,null,null,2014,"",{"$f":"IFERROR(VLOOKUP(T37,elberlista!$A$3:$B$45,2,FALSE),0)","v":0},0,""]
[null,null,null,null,null,null,null,null,null,null,null,null,"",null,"",null,null,null,2013,"",{"$f":"IFERROR(VLOOKUP(T38,elberlista!$A$3:$B$45,2,FALSE),0)","v":0},0,""]
[null,null,null,null,null,null,null,null,null,null,null,null,"",null,"",null,null,null,2012,"",{"$f":"IFERROR(VLOOKUP(T39,elberlista!$A$3:$B$45,2,FALSE),0)","v":0},0,""]
[null,null,null,null,null,null,null,null,null,null,null,null,"",null,"",null,null,null,2011,"",{"$f":"IFERROR(VLOOKUP(T40,elberlista!$A$3:$B$45,2,FALSE),0)","v":0},0,""]
[null,null,null,"Biztosítási összeg összesen:",null,{"$f":"IF(SUM(I21:I40)>500000000,\"Nem lehet több, mint 500 millio\",SUM(I21:I40))","v":0},null,null,null,null,null,"Összesen:",{"$f":"IF(F41<=S21,IF(AND(SUM(W21:W40)>0,SUM(W21:W40)<elbermindij),elbermindij,SUM(W21:W40)),0)","v":0}]
[]
[null,null,null,"Önrész:",null,{"$f":"U190","v":"10 %, de min. 25 000 Ft/ kár"}]
[]
[null,null,null,"Díjtétel:",null,1]
[]
[null,null,null,"Éves díj:",null,{"$f":"IFERROR(IF(AND(F41<=S21,M41<V193),V193,M41),0)","v":25000},null,{"$f":"IF(F47=V193,\"(minimum díj!)\",\" \")","v":"(minimum díj!)"}]
[]
[null,null,null,"II. Külső adathordozók biztosítása"]
[]
[null,null,null,"Biztosított kockázatok:","a dologi károk biztosításában fedezett biztosítási események miatt az adathordozókban, adatokban bekövetkezett károk fedezete"]
[]
[]
[null,null,null,"adatok újraelőállítási költsége",null,0,null,null,"műszaki avult érték"]
[null,null,null,"lap-top-ok",null,0,null,null,"műszaki avult érték"]
[null,null,null,"előgondoskodás",null,0]
[null,null,null,"szoftverek",null,0,null,null,"tényleges beszerzési érték"]
[null,null,null,"Biztosítási összeg összesen:",null,{"$f":"SUM(F54:F57)","v":0}]
[]
[null,null,null,"Önrész:",null,0,"  / kár - levonásos"]
[]
[]
[]
[null,null,null,"Díjtétel:","a)",0]
[null,null,null,null,"b)",0]
[null,null,null,null,"c)",0]
[]
[null,null,null,"Éves díj:","a)",{"$f":"(F58*F64)/1000","v":0}]
[null,null,null,null,"b)",{"$f":"(F58*F65)/1000","v":0}]
[null,null,null,null,"c)",{"$f":"(F58*F66)/1000","v":0}]
[]
[null,null,null,"A biztosítottak kötelesek minden nap a munkaidő végén számítógépes rendszerükben lévő adatokról biztonsági mentést készíteni és azokat külön tűzszakaszon tárolni."]
[]
[null,null,null,"III. Többletköltségek biztosítása"]
[]
[null,null,null,"Biztosított kockázatok:","a dologi károk biztosításában fedezett biztosítási események miatt bekövetkező többletkölségek fedezete"]
[]
[]
[null,null,null,"többletköltség (…. havi adat)",null,0,null,null,null,null,null,null,null,null,null,null,null,null,null,null,null,null,null,false]
[null,null,null,"lap-top-ok",null,0,null,null,"műszaki avult érték"]
[null,null,null,"előgondoskodás",null,0,null,null,null,null,null,null,null,null,null,null,null,null,null,null,null,null,null,true]
[null,null,null,"szoftverek",null,0,null,null,"tényleges beszerzési érték"]
[null,null,null,"Biztosítási összeg összesen:",null,{"$f":"SUM(F79:F82)","v":0}]
[]
[null,null,null,"Fedezeti tartam:",null,6]
[null,null,null,"Fedezeti összeg:",null,0]
[]
[null,null,null,"Önrész:",null,0]
[]
[]
[]
[null,null,null,"Díjtétel:","a)",0]
[null,null,null,null,"b)",0]
[null,null,null,null,"c)",0]
[]
[null,null,null,"Éves díj:","a)",{"$f":"F83*F92/1000","v":0}]
[null,null,null,null,"b)",{"$f":"(F83*F93)/1000","v":0}]
[null,null,null,null,"c)",{"$f":"(F83*F94)/1000","v":0}]
[null,null,null,"Üzletmenetfolytonossági terv miatti engedmény (egyedi záradék szerint):",null,0]
[]
[]
[null,null,null,"Fizetendő éves díj:",null,{"$f":"F96-(F96*F99)","v":0}]
[]
[]
[null,null,null,"Összesen:",null,{"$f":"F102+F68+F47","v":25000}]
[]
[]
[]
[]
[null,null,null,"Biztosítási feltételek"]
[null,null,null,"Általános Vagyonbiztosítási Feltételek (U70050)\nElektromos és elektronikus gépek és berendezések Különös Biztosítási Feltételei (U70052)"]
[null,null,null,"Külső adathordozók és az azokon tárolt információk kiegészítő biztosítási feltételei az Elektromos és elektronikus gépek és bernedezések Különös Biztosítási Feltételeihez"]
[null,null,null,"Többletmunka költségeinek kiegészítő biztosítási feltételei az Elektromos és elektronikus gépek és berendezések Különös Biztosítási Feltételeihez"]
[null,null,null,"Betöréses lopás és rablás biztosítási Védelmi Feltételek (U71019/1)"]
[null,null,null,"Egyedi záradék:"]
[null,null,null,"Fedezetkiterjesztés telephelyen kívüli és szállítási kockázatokra"]
[null,null,null,"EGYÉB"]
[]
[null,null,null,"A biztosítási szerződésen a …………………………………. (…………………………………………..) került zálogjogosultként bejegyzésre az alábbi biztosított gépet ért károk esetére, az alábbi hitel és járulékai, de maximum a biztosítási összeg erejéig. \nBiztosított gép:                  ………………………………….\nHitelszerződés száma:    …………………………\nHitel típusa:                        …………………………\nHitel kezdete:                    …………………………\nHitel lejárata:                     …………………………\nHitel összege:                   …………………………\n\nA zálogjogosult bejegyzése a biztosítás érvényességi időtartama alatt áll fenn, annak megszüntetése csak a zálogjogosult írásos kérelmére lehetséges."]
[]
[]
[null,null,null,"A biztosítási szerződésre a fentiekben hivatkozott biztosítási feltételek és az ajánlatban foglalt egyedi záradékok együttesen vonatkoznak."]
[null,null,null,"A Biztosító kockázatviselése a szabadban tárolt vagyontárgyak fedezetére nem terjed ki.\nA Biztosító nem nyújt fedezetet, nem teljesít kárkifizetést, valamint nem nyújt szolgáltatást, amennyiben ezen fedezet nyújtásával, illetve kár kifizetésével a Biztosító sértené  az Egyesült Nemzetek Szervezetének határozata szerinti bármely szankcióit, rendelkezéseit, vagy rendeleteit,  valamint Magyarország, az Európai Unió, illetve az Egyesült Államok kereskedelmi, pénzügyi embargóit vagy gazdasági szankcióit, törvényeit vagy rendeleteit, (feltéve, hogy ezek nem sértik az biztosítóra alkalmazandó szabályozásokat vagy nemzeti jogszabályokat).\nNem terjed ki a biztosítás azokra a károkra, amelyek bármilyen (bakteriális, vírusos, stb.) kórokozói eredetű járványos megbetegedéssel, betegséggel, vagy fertőzéssel összefüggésben következnek be, és amelyek a kórokozó bármely fajtájától, mutációjától, illetve variánsától származnak."]
[]
[null,null,null,"Tartamtól függő engedmény:"]
[null,null,null,"A Biztosított / Szerződő egyoldalúan vállalja, hogy jelen biztosítási szerződést 3 évig (tartamidőszak) nem szünteti meg.\nAz UNION Vienna Insurance Group Biztosító Zrt. a Biztosított / Szerződő előbbi kötelezettségvállalása miatt 10 % tartamtól függő engedményt ad a biztosítási szerződés éves összdíjából.    \nAmennyiben Biztosított / Szerződő előbbi kötelezettségvállalása ellenére a biztosítási szerződést egyoldalúan megszünteti, ide nem értve az érdekmúlás esetét, úgy a biztosítási szerződés megszűnéséig köteles a jelen záradékban foglalt engedmény Biztosító részére történő egyösszegű visszafizetésére.\nA tartamidőszak elteltével a felek ismét megállapodhatnak a tartamtól függő engedmény előzőekben írt szabályainak újabb tartamidőszakra történő alkalmazásában. Ilyen megállapodásnak tekintendő az is, ha a tartamidőszak leteltéig sem a Biztosított / Szerződő, sem a Biztosító nem intéz a másik félhez a szerződés, illetve a tartamtól függő engedmény alkalmazásának megszűntetésére irányuló nyilatkozatot. \nA díjösszesítőn írt éves díjak a tartamtól függő engedményt nem tartalmazzák.  "]
[]
[null,null,null,"Megelőlegezett kármentességi díjengedmény"]
[null,null,null,{"$f":"CONCATENATE(\"A biztosító a szerződőt a jelen szerződés tekintetében a biztosítási időszakra annak teljes díja \",elozetes.engedmeny*100&\"%\",\"-ának megfelelő mértékű megelőlegezett kármentességi díjengedményben részesíti. Amennyiben a díjengedménnyel érintett szerződés alapján kárigény érvényesítésre kerül sor \",\"és a biztosító ennek kapcsán szolgáltatás nyújtására kötelezett, a szerződő köteles a kármentességi díjengedmény összegét a \",\"biztosító számára megfizetni, illetve - amennyiben a szolgáltatás jogosultja a szerződő - a biztosító jogosult a díjengedmény összegét a szolgáltatás összegéből közvetlenül levonásba helyezni.\")","v":"A biztosító a szerződőt a jelen szerződés tekintetében a biztosítási időszakra annak teljes díja 0%-ának megfelelő mértékű megelőlegezett kármentességi díjengedményben részesíti. Amennyiben a díjengedménnyel érintett szerződés alapján kárigény érvényesítésre kerül sor és a biztosító ennek kapcsán szolgáltatás nyújtására kötelezett, a szerződő köteles a kármentességi díjengedmény összegét a biztosító számára megfizetni, illetve - amennyiben a szolgáltatás jogosultja a szerződő - a biztosító jogosult a díjengedmény összegét a szolgáltatás összegéből közvetlenül levonásba helyezni."}]
[]
[null,null,null,null,null,null,null,null,null,null,null,null,null,null,null,null,null,null,"biztosítási összeg (M Ft)","számítás- és irodatechnikai gépek","orvosi és kozmetikai gép, tudományos kutatás gépei","grafikai, nyomdatechnikai eszközök","telekom, automatizálás és méréstechnika, szórakoztató elektronikára "]
[null,null,null,null,null,null,null,null,null,null,null,null,null,null,null,null,null,null,"0-10",4.4000000000000004,4.84,5.25,5.42]
[null,null,null,null,null,null,null,null,null,null,null,null,null,null,null,null,null,null,"11-25",{"$f":"T132*0.91","v":4.0040000000000004},{"$f":"U132*0.91","v":4.4043999999999999},{"$f":"V132*0.91","v":4.7774999999999999},{"$f":"W132*0.91","v":4.9321999999999999}]
[null,null,null,"Díjfizetési engedmény:",null,null,null,null,null,null,null,null,null,null,null,null,null,null,"21-50",{"$f":"T133*0.9","v":3.6036000000000006},{"$f":"U133*0.9","v":3.9639600000000002},{"$f":"V133*0.9","v":4.2997500000000004},{"$f":"W133*0.9","v":4.4389799999999999}]
[null,null,null,"Amennyiben a szerződő/biztosított a biztosítási díjat az alábbi díjfizetési gyakorisággal egyenlíti ki, akkor a biztosító a számára a fentiekben megállapított biztosítási díjakból az alábbi díjfizetési engedményeket nyújtja.",null,null,null,null,null,null,null,null,null,null,null,null,null,null,"51-100",{"$f":"T134*0.91","v":3.2792760000000007},{"$f":"U134*0.91","v":3.6072036000000001},{"$f":"V134*0.91","v":3.9127725000000004},{"$f":"W134*0.91","v":4.0394718000000003}]
[null,null,null," - éves díjfizetés esetén: 5%",null,null,null,null,null,null,null,null,null,null,null,null,null,null,"101-250",{"$f":"T135*0.92","v":3.0169339200000009},{"$f":"U135*0.92","v":3.3186273120000003},{"$f":"V135*0.92","v":3.5997507000000004},{"$f":"W135*0.92","v":3.7163140560000003}]
[null,null,null," - féléves díjfizetés esetén: 2,5%."]
[]
[null,null,null,"Kelt:",{"$f":"kelt&\", \"&TEXT(Díjösszesítő!M156, \"ÉÉÉÉ.hh.nn\")","v":"0, 2021.07.01"}]
[null,null,null,null,null,null,null,"Szerződő cégszerű aláírása",null,null,null,null,null,null,null,null,null,null,null,{"$f":"T133/$T$132","v":0.91},{"$f":"U133/$U$132","v":0.91},{"$f":"V133/$V$132","v":0.90999999999999992},{"$f":"W133/$W$132","v":0.91}]
[null,null,null,null,null,null,null,null,null,null,null,null,null,null,null,null,null,null,null,{"$f":"T134/$T$132","v":0.81900000000000006},{"$f":"U134/$U$132","v":0.81900000000000006},{"$f":"V134/$V$132","v":0.81900000000000006},{"$f":"W134/$W$132","v":0.81899999999999995}]
[null,null,null,null,null,null,null,null,null,null,null,null,null,null,null,null,null,null,null,{"$f":"T135/$T$132","v":0.74529000000000012},{"$f":"U135/$U$132","v":0.74529000000000001},{"$f":"V135/$V$132","v":0.74529000000000012},{"$f":"W135/$W$132","v":0.74529000000000001}]
[null,null,null,null,null,null,null,null,null,null,null,null,null,null,null,null,null,null,null,{"$f":"T136/$T$132","v":0.68566680000000013},{"$f":"U136/$U$132","v":0.68566680000000013},{"$f":"V136/$V$132","v":0.68566680000000013},{"$f":"W136/$W$132","v":0.68566680000000002}]
[]
[]
[]
[]
[]
[]
[]
[]
[]
[]
[]
[]
[]
[]
[]
[]
[]
[]
[]
[]
[]
[]
[]
[]
[]
[null,null,null,"               Átlagos alkalmazotti létszám az 1.000 főt"]
[]
[null,null,null,null,null,"igen",null,null,"nem"]
[]
[]
[null,null,null,"Kelt:"]
[null,null,null,null,null,null,null,null,"Szerződő cégszerű aláírása"]
[]
[]
[]
[null,null,null,null,null,null,null,null,null,null,null,null,null,null,null,null,null,false,null,"biztosítási összeg (M Ft)",null,"1.) Számítás- és irodatechnikai gépek (kizárólag kockázatviselési helyen), épületgépészethez tartozó elektronikus eszközök\nIrodagépek (irógép, számológép, másológép)","2.) Orvosi, kozmetikai és tudomásony kutatás gépei","3.) Grafikai, nyomdatechnikai eszközök","4.) Telekomminikációs eszközök, automatizálás és méréstechnika gépei, szórakoztató elektronika"]
[null,null,null,null,null,null,null,null,null,null,null,null,null,null,null,null,null,null,null,0,10000000,{"$f":"4.4*1.1","v":4.8400000000000007},{"$f":"4.84*1.1","v":5.3239999999999998},{"$f":"5.25*1.1","v":5.7750000000000004},{"$f":"5.42*1.1","v":5.9620000000000006},null,null,1]
[null,null,null,null,null,null,null,null,null,null,null,null,null,null,null,null,null,null,null,11,25000000,{"$f":"V180*AB181","v":4.4044000000000008},{"$f":"W180*$AB$181","v":4.8448399999999996},{"$f":"$X$180*AB181","v":5.2552500000000002},{"$f":"$Y$180*AB181","v":5.4254200000000008},null,null,0.91]
[null,null,null,null,null,null,null,null,null,null,null,null,null,null,null,null,null,null,null,26,50000000,{"$f":"$V$180*AB182","v":3.963960000000001},{"$f":"$W$180*AB182","v":4.3603560000000003},{"$f":"$X$180*AB182","v":4.7297250000000011},{"$f":"$Y$180*AB182","v":4.8828780000000007},null,null,0.81900000000000006]
[null,null,null,null,null,null,null,null,null,null,null,null,null,null,null,null,null,null,null,51,100000000,{"$f":"$V$180*AB183","v":3.607203600000001},{"$f":"$W$180*AB183","v":3.9679239600000007},{"$f":"$X$180*AB183","v":4.3040497500000008},{"$f":"$Y$180*AB183","v":4.4434189800000015},null,null,0.74529000000000012]
[null,null,null,null,null,null,null,null,null,null,null,null,null,null,null,null,null,null,null,101,250000000,{"$f":"$V$180*AB184","v":3.3186273120000012},{"$f":"$W$180*AB184","v":3.6504900432000005},{"$f":"$X$180*AB184","v":3.9597257700000008},{"$f":"$Y$180*AB184","v":4.0879454616000013},null,null,0.68566680000000013]
[]
[null,null,null,null,null,null,null,null,null,null,null,null,null,null,null,null,null,null,"alapönrész",true,"10 %, de min. 25 000 Ft/ kár",null,1,{"$f":"IF(T186=TRUE,W186,IF(T187=TRUE,W187,IF(T188=TRUE,W188)))","v":1},null,null,"b.ö. szorzó:",{"$f":"IF(I21<=U180,AB180,IF(I21<=U181,AB181,IF(I21<=U182,AB182,IF(I21<=U183,AB183,IF(I21<=U184,AB184,\"túl nagy a biztosítási összeg\")))))","v":1}]
[null,null,null,null,null,null,null,null,null,null,null,null,null,null,null,null,null,null,null,false,"10 %, de min. 50 000 Ft/ kár",null,0.9]
[null,null,null,null,null,null,null,null,null,null,null,null,null,null,null,null,null,null,null,false,"10 %, de min. 100 000 Ft/ kár",null,0.8,null,null,null,"géptípus szorzó:","'=HA(T21=V179;V180;HA(T21=W179;W180;HA(T21=X179;X180;HA(T21=Y179;Y180))))"]
[]
[null,null,null,null,null,null,null,null,null,null,null,null,null,null,null,null,null,null,null,null,{"$f":"IF(T186=TRUE,U186,IF(T187=TRUE,U187,IF(T188=TRUE,U188)))","v":"10 %, de min. 25 000 Ft/ kár"},null,null,null,null,null,"együtt:","\"\"=X186*AB186*AB188"]
[]
[]
[null,null,null,null,null,null,null,null,null,null,null,null,null,null,null,null,null,null,null,null,"minimális díj:",25000]

{"sheet":"Géptörés","index":5,"n_rows":180,"n_cols":29,"rows_kept":180,"cut":false,"hidden":true,"merged":[[116,7,116,12],[33,3,33,4],[34,3,34,4],[115,8,115,11],[33,9,33,11],[34,9,34,11],[45,5,45,6],[98,3,98,12],[96,3,96,12],[13,9,13,11],[15,9,15,11],[16,9,16,11],[17,9,17,11],[18,9,18,11],[31,3,31,4],[32,3,32,4],[19,9,19,11],[20,9,20,11],[21,9,21,11],[22,9,22,11],[23,9,23,11],[27,9,27,11],[28,9,28,11],[29,9,29,11],[30,9,30,11],[31,9,31,11],[32,9,32,11],[4,3,4,8],[139,3,139,12],[95,3,95,12],[97,3,97,12],[68,3,68,11],[70,3,70,11],[93,3,93,11],[65,3,65,5],[26,3,26,4],[13,3,13,4],[15,3,15,4],[16,3,16,4],[17,3,17,4],[18,3,18,4],[27,3,27,4],[29,3,29,4],[151,8,151,11],[14,9,14,10],[14,4,14,7],[99,3,99,12],[94,3,94,12],[102,3,102,12],[105,3,108,12],[111,3,111,12],[22,3,22,4],[23,3,23,4],[24,3,24,4],[25,3,25,4],[24,9,24,11],[25,9,25,11],[26,9,26,11],[30,3,30,4],[11,4,11,12],[9,0,68,0],[71,5,71,11],[92,3,92,12],[9,3,9,11],[50,7,50,8],[53,3,53,11],[63,3,63,5],[56,3,56,5],[58,3,58,5],[50,5,50,6],[43,5,43,8],[19,3,19,4],[20,3,20,4],[21,3,21,4],[28,3,28,4]]}
["Géptörés biztosítás"]
[]
[null,"Géplista:"]
[]
[null,"Biztosított gépkategória:",null,"mezőgazdasági és erdészeti gépek (kivéve kombájnok, arató-, cséplőgépek, szárítók)"]
[]
[null,"Önrész:",null,"10%, de min."]
[]
[null,null,null,null,null,null,null,null,null,null,null,null,null,null,null,null,null,null,null,null,true]
["Géptörés",null,null,"Gép-, géptörés-biztosítás"]
[]
[null,null,null,"Biztosított kockázatok:","Tervezési vagy kivitelezési hiba, anyaghiba, rázkódás, alkatrészek kilazulása, hibás beállítás vagy szabályozás, rossz elhelyezés, kenés kimaradás, túlterhelés, túlhevülés, túlpörgés, rövidzárlat, szigetelési hiba, mérő-szabályozó berendezések meghibásodása, leesés, lökés, ütközés, gépet üzemeltető dolgozó figyelmetlensége.",null,null,null,null,null,null,null,null,null,null,null,null,null,null,null,"Értékelés alapja"]
[null,null,null,"Géplista",null,null,null,null,null,null,null,null,null,null,null,null,null,null,null,null,"új érték"]
[null,null,null,"Megnevezés",null,"Gyártmány, Típus","Azonosító szám","Gyárt. év","Egyedi gépérték (bizt. összeg)","Értékelés alapja",null,null,"Alapdíj (Ft)",null,"Gépcsoport",null,null,null,null,"Gépcsoport","műszaki avult",null,"Alapdíj"]
[null,null,null,null,"Az ajánlatkéréshez csatolt adatközlő szerint",null,null,null,null,44225000,null,null,"új érték"]
[null,null,null,null,null,null,null,null,null,null,null,null,{"$f":"IF(AND($M$44=gepmindij,W16<>\"\",W16>0),\"Minimum díj!\",W16)","v":""},null,{"$f":"IF(AND(U16>2,U16<6),geptorcsop1,IF(AND(U16>6,U16<24),geptorcsop2,IF(AND(U16>24,U16<68),geptorcsop3,IF(AND(U16>68,U16<106),geptorcsop4,\"\"))))","v":""},null,null,null,null,"",{"$f":"IFERROR(VLOOKUP(T16,geptoreslista!$A$3:$B$121,2,FALSE),0)","v":0},{"$f":"IF(I16<=$T$155,$AA$155,IF(I16<=T156,$AA$156,IF(I16<=$T$157,$AA$157,IF(I16<=$T$158,$AA$158,IF(I16<=$T$159,$AA$159,\"túl nagy b.ö.\")))))*IF(O16=$U$153,$U$155,IF(O16=$V$153,$V$155,IF(O16=$W$153,$W$155,IF(O16=$X$153,$X$155))))*$V$166","v":0},{"$f":"IF($F$44>$S$21,0,IF(V16=0,IF(I16>0,0,\"\"),I16*V16/1000))","v":""}]
[null,null,null,null,null,null,null,null,null,null,null,null,"",null,"",null,null,null,null,"",{"$f":"IFERROR(VLOOKUP(T17,geptoreslista!$A$3:$B$121,2,FALSE),0)","v":0},{"$f":"IF(I17<=$T$155,$AA$155,IF(I17<=T157,$AA$156,IF(I17<=$T$157,$AA$157,IF(I17<=$T$158,$AA$158,IF(I17<=$T$159,$AA$159,\"túl nagy b.ö.\")))))*IF(O17=$U$153,$U$155,IF(O17=$V$153,$V$155,IF(O17=$W$153,$W$155,IF(O17=$X$153,$X$155))))*$V$166","v":0},{"$f":"IF($F$44>$S$21,0,IF(V17=0,IF(I17>0,0,\"\"),I17*V17/1000))","v":""}]
[null,null,null,null,null,null,null,null,null,null,null,null,"",null,"",null,null,null,null,"",{"$f":"IFERROR(VLOOKUP(T18,geptoreslista!$A$3:$B$121,2,FALSE),0)","v":0},0,""]
[null,null,null,null,null,null,null,null,null,null,null,null,"",null,"",null,null,null,50000000,"",{"$f":"IFERROR(VLOOKUP(T19,geptoreslista!$A$3:$B$121,2,FALSE),0)","v":0},0,""]
[null,null,null,null,null,null,null,null,null,null,null,null,"",null,"",null,null,null,500000000,"",{"$f":"IFERROR(VLOOKUP(T20,geptoreslista!$A$3:$B$121,2,FALSE),0)","v":0},0,""]
[null,null,null,null,null,null,null,null,null,null,null,null,"",null,"",null,null,null,500000000,"",{"$f":"IFERROR(VLOOKUP(T21,geptoreslista!$A$3:$B$121,2,FALSE),0)","v":0},0,""]
[null,null,null,null,null,null,null,null,null,null,null,null,"",null,"",null,null,null,null,"",{"$f":"IFERROR(VLOOKUP(T22,geptoreslista!$A$3:$B$121,2,FALSE),0)","v":0},0,""]
[null,null,null,null,null,null,null,null,null,null,null,null,"",null,"",null,null,null,null,"",{"$f":"IFERROR(VLOOKUP(T23,geptoreslista!$A$3:$B$121,2,FALSE),0)","v":0},0,""]
[null,null,null,null,null,null,null,null,null,null,null,null,"",null,"",null,null,null,"Gyártási év lista",null,{"$f":"IFERROR(VLOOKUP(T24,geptoreslista!$A$3:$B$121,2,FALSE),0)","v":0},0,""]
[null,null,null,null,null,null,null,null,null,null,null,null,"",null,"",null,null,null,{"$f":"YEAR(TODAY())","v":2021},null,{"$f":"IFERROR(VLOOKUP(T25,geptoreslista!$A$3:$B$121,2,FALSE),0)","v":0},0,""]
[null,null,null,null,null,null,null,null,null,null,null,null,"",null,"",null,null,null,{"$f":"S25-1","v":2020},"",{"$f":"IFERROR(VLOOKUP(T26,geptoreslista!$A$3:$B$121,2,FALSE),0)","v":0},0,""]
[null,null,null,null,null,null,null,null,null,null,null,null,"",null,"",null,null,null,{"$f":"S26-1","v":2019},null,{"$f":"IFERROR(VLOOKUP(T27,geptoreslista!$A$3:$B$121,2,FALSE),0)","v":0},0,""]
[null,null,null,null,null,null,null,null,null,null,null,null,"",null,"",null,null,null,2018,"",{"$f":"IFERROR(VLOOKUP(T28,geptoreslista!$A$3:$B$121,2,FALSE),0)","v":0},0,""]
[null,null,null,null,null,null,null,null,null,null,null,null,"",null,"",null,null,null,2017,null,{"$f":"IFERROR(VLOOKUP(T29,geptoreslista!$A$3:$B$121,2,FALSE),0)","v":0},0,""]
[null,null,null,null,null,null,null,null,null,null,null,null,"",null,"",null,null,null,2016,null,{"$f":"IFERROR(VLOOKUP(T30,geptoreslista!$A$3:$B$121,2,FALSE),0)","v":0},0,""]
[null,null,null,null,null,null,null,null,null,null,null,null,"",null,"",null,null,null,2015,null,{"$f":"IFERROR(VLOOKUP(T31,geptoreslista!$A$3:$B$121,2,FALSE),0)","v":0},0,""]
[null,null,null,null,null,null,null,null,null,null,null,null,"",null,"",null,null,null,2014,null,{"$f":"IFERROR(VLOOKUP(T32,geptoreslista!$A$3:$B$121,2,FALSE),0)","v":0},0,""]
[null,null,null,null,null,null,null,null,null,null,null,null,"",null,"",null,null,null,2013,null,{"$f":"IFERROR(VLOOKUP(T33,geptoreslista!$A$3:$B$121,2,FALSE),0)","v":0},0,""]
[null,null,null,null,null,null,null,null,null,null,null,null,"",null,"",null,null,null,2012,null,{"$f":"IFERROR(VLOOKUP(T34,geptoreslista!$A$3:$B$121,2,FALSE),0)","v":0},0,""]
[null,null,null,null,null,null,null,null,null,null,null,null,"",null,"",null,null,null,2011,"",{"$f":"IFERROR(VLOOKUP(T35,geptoreslista!$A$3:$B$121,2,FALSE),0)","v":0},0,""]
[null,null,null,null,null,null,null,null,null,null,null,null,null,null,""]
[null,null,null,null,null,null,null,null,null,null,null,null,null,null,""]
[null,null,null,null,null,null,null,null,null,null,null,null,null,null,""]
[null,null,null,null,null,null,null,null,null,null,null,null,null,null,""]
[null,null,null,null,null,null,null,null,null,null,null,null,null,null,""]
[null,null,null,null,null,null,null,null,null,null,null,null,null,null,""]
[null,null,null,null,null,null,null,null,null,null,null,null,null,null,"",null,null,null,null,null,null,{"$f":"V44","v":"10 %, de min. 100 000 Ft/ kár"}]
[null,null,null,null,null,null,null,null,null,null,null,null,null,null,""]
[null,null,null,"Biztosítási összeg összesen:",null,{"$f":"IF(SUM(I16:I35)>500000000,\"Nem lehet több, mint 500 millio\",SUM(I16:I35))","v":0},null,null,null,null,null,"Összesen:",{"$f":"IF(F44<=S21,IF(AND(SUM(W16:W35)>0,SUM(W16:W35)<gepmindij),gepmindij,SUM(W16:W35)),0)","v":0},null,null,null,null,null,null,null,true,{"$f":"IF(U44=TRUE,V162,IF(U45=TRUE,V163,IF(U46=TRUE,V164)))","v":"10 %, de min. 100 000 Ft/ kár"}]
[null,null,null,null,null,null,null,null,null,null,null,null,null,null,null,null,null,null,null,null,false]
[null,null,null,"Önrész:",null,{"$f":"V44","v":"10 %, de min. 100 000 Ft/ kár"},null,null,null,null,null,null,null,null,null,null,null,null,null,null,false]
[]
[]
[null,null,null,"Díjtétel:",null,{"$f":"ROUND(Z169,3)","v":0}]
[]
[null,null,null,"Éves díj:",null,{"$f":"IFERROR(IF(AND(F44<=S21,M44<W171),W171,M44),0)","v":30000},null,{"$f":"IF(F51=W171,\"(minimum díj!)\",\"\")","v":"(minimum díj!)"}]
[]
[null,null,null,"Biztosítási feltételek"]
[null,null,null,"Általános Vagyonbiztosítási Feltételek (U70050)\nGép-, géptörés-biztosítás Különös biztosítási feltételek (U70053)\n"]
[null,null,null,"ZÁRADÉKOK:"]
[null,null,null,"G01. :Alapzatok",null,null,"G07.: Biztonságtechnikai elemek"]
[null,null,null,"G02.: Tűztérfalazatok és kemencék"]
[null,null,null,"G03.: Gépolajok",null,null,"G08.: Belső égésű motorok"]
[null,null,null,"G04.: Hűtőberendezések, hűtőszekrények",null,null,"G12.: Lecserélt részek értékcsökkenése"]
[null,null,null,"G05.: Lánctalpas járművek",null,null,"G13.: Kárrendezés géptörés- és tűzbiztosítás ütközése esetén"]
[null,null,null,"G06.: Robbantások"]
[]
[]
[null,null,null,"G09.: Fénycsövek, lámpák és fűtőelemek"]
[null,null,null,"G10.: Égőfej fúvókák"]
[null,null,null,"G11.: Gázturbina-berendezések"]
[]
[]
[null,null,null,"A fedezet érvényességéhez kérjük a berendezések azonosító adatait (megnvezés, típus, gyári szám, gyártási év) megadni szíveskedjenek!"]
[]
[null,null,null,"Kiegészítő biztosítás Géptörés-üzemszünet esetére"]
[null,null,null,"Biztosított kockázatok:",null,"géptörés biztosítás miatt bekövetkező géptörés üzemszüneti kár a biztosítási feltételben meghatározottak szerint"]
[]
[null,null,null,"Állandó költség:",null,0]
[null,null,null,"Nyereség:",null,0]
[null,null,null,"Biztosítási összeg:",null,{"$f":"SUM(F74:F75)","v":0}]
[null,null,null,"Fedezeti összeg:",null,{"$f":"F76/(12/F78)","v":0}]
[null,null,null,"Fedezeti idő:",null,6]
[]
[null,null,null,"Önrész:","a)",3,"/kár"]
[null,null,null,null,"b)",null,"/kár"]
[null,null,null,null,"c)",null,"/kár"]
[]
[null,null,null,"Díjtétel:","a)",0]
[null,null,null,null,"b)",0]
[null,null,null,null,"c)",0]
[]
[null,null,null,"Éves díj:","a)",{"$f":"F76*F84/1000","v":0}]
[null,null,null,null,"b)",{"$f":"($D$169*F85)/1000","v":0},null,null,null,null,null,null,null,null,null,null,null,null,null,null,null,null,null,true]
[null,null,null,null,"c)",{"$f":"($D$169*F86)/1000","v":0}]
[]
[null,null,null,"Biztosítási feltételek:"]
[null,null,null,"Általános Vagyonbiztosítási Feltételek"]
[null,null,null,"Gép-, géptörés-biztosítás Különös biztosítási feltételek"]
[null,null,null,"Géptörés-üzemszünet biztosítási Kiegészítő feltételei a Gép- és géptörésbiztosítás Különös biztosítási feltételeihez"]
[null,null,null,"EGYÉB"]
[null,null,null,"EGYÉB"]
[null,null,null,"A biztosítási szerződésen a …………………………………. (…………………………………………..) került zálogjogosultként bejegyzésre az alábbi biztosított gépet ért károk esetére, az alábbi hitel és járulékai, de maximum a biztosítási összeg erejéig. \nBiztosított gép:                  ………………………………….\nHitelszerződés száma:    …………………………\nHitel típusa:                        …………………………\nHitel kezdete:                    …………………………\nHitel lejárata:                     …………………………\nHitel összege:                   …………………………\n\nA zálogjogosult bejegyzése a biztosítás érvényességi időtartama alatt áll fenn, annak megszüntetése csak a zálogjogosult írásos kérelmére lehetséges."]
[null,null,null,"A biztosítási szerződésre a fentiekben hivatkozott biztosítási feltételek és az ajánlatban foglalt egyedi záradékok együttesen vonatkoznak."]
[null,null,null,"A Biztosító kockázatviselése a szabadban tárolt vagyontárgyak fedezetére nem terjed ki.\nA Biztosító nem nyújt fedezetet, nem teljesít kárkifizetést, valamint nem nyújt szolgáltatást, amennyiben ezen fedezet nyújtásával, illetve kár kifizetésével a Biztosító sértené  az Egyesült Nemzetek Szervezetének határozata szerinti bármely szankcióit, rendelkezéseit, vagy rendeleteit,  valamint Magyarország, az Európai Unió, illetve az Egyesült Államok kereskedelmi, pénzügyi embargóit vagy gazdasági szankcióit, törvényeit vagy rendeleteit, (feltéve, hogy ezek nem sértik az biztosítóra alkalmazandó szabályozásokat vagy nemzeti jogszabályokat).\nNem terjed ki a biztosítás azokra a károkra, amelyek bármilyen (bakteriális, vírusos, stb.) kórokozói eredetű járványos megbetegedéssel, betegséggel, vagy fertőzéssel összefüggésben következnek be, és amelyek a kórokozó bármely fajtájától, mutációjától, illetve variánsától származnak."]
[]
[null,null,null,"Tartamtól függő engedmény:"]
[null,null,null,"A Biztosított / Szerződő egyoldalúan vállalja, hogy jelen biztosítási szerződést 3 évig (tartamidőszak) nem szünteti meg.\nAz UNION Vienna Insurance Group Biztosító Zrt. a Biztosított / Szerződő előbbi kötelezettségvállalása miatt 10 % tartamtól függő engedményt ad a biztosítási szerződés éves összdíjából.    \nAmennyiben Biztosított / Szerződő előbbi kötelezettségvállalása ellenére a biztosítási szerződést egyoldalúan megszünteti, ide nem értve az érdekmúlás esetét, úgy a biztosítási szerződés megszűnéséig köteles a jelen záradékban foglalt engedmény Biztosító részére történő egyösszegű visszafizetésére.\nA tartamidőszak elteltével a felek ismét megállapodhatnak a tartamtól függő engedmény előzőekben írt szabályainak újabb tartamidőszakra történő alkalmazásában. Ilyen megállapodásnak tekintendő az is, ha a tartamidőszak leteltéig sem a Biztosított / Szerződő, sem a Biztosító nem intéz a másik félhez a szerződés, illetve a tartamtól függő engedmény alkalmazásának megszűntetésére irányuló nyilatkozatot. \nA díjösszesítőn írt éves díjak a tartamtól függő engedményt nem tartalmazzák.  "]
[]
[null,null,null,"Megelőlegezett kármentességi díjengedmény"]
[null,null,null,{"$f":"CONCATENATE(\"A biztosító a szerződőt a jelen szerződés tekintetében a biztosítási időszakra annak teljes díja \",elozetes.engedmeny*100&\"%\",\"-ának megfelelő mértékű megelőlegezett kármentességi díjengedményben részesíti. Amennyiben a díjengedménnyel érintett szerződés alapján kárigény érvényesítésre kerül sor \",\"és a biztosító ennek kapcsán szolgáltatás nyújtására kötelezett, a szerződő köteles a kármentességi díjengedmény összegét a \",\"biztosító számára megfizetni, illetve - amennyiben a szolgáltatás jogosultja a szerződő - a biztosító jogosult a díjengedmény összegét a szolgáltatás összegéből közvetlenül levonásba helyezni.\")","v":"A biztosító a szerződőt a jelen szerződés tekintetében a biztosítási időszakra annak teljes díja 0%-ának megfelelő mértékű megelőlegezett kármentességi díjengedményben részesíti. Amennyiben a díjengedménnyel érintett szerződés alapján kárigény érvényesítésre kerül sor és a biztosító ennek kapcsán szolgáltatás nyújtására kötelezett, a szerződő köteles a kármentességi díjengedmény összegét a biztosító számára megfizetni, illetve - amennyiben a szolgáltatás jogosultja a szerződő - a biztosító jogosult a díjengedmény összegét a szolgáltatás összegéből közvetlenül levonásba helyezni."}]
[]
[]
[]
[]
[null,null,null,"Díjfizetési engedmény:"]
[null,null,null,"Amennyiben a szerződő/biztosított a biztosítási díjat az alábbi díjfizetési gyakorisággal egyenlíti ki, akkor a biztosító a számára a fentiekben megállapított biztosítási díjakból az alábbi díjfizetési engedményeket nyújtja."]
[null,null,null," - éves díjfizetés esetén: 5%"]
[null,null,null," - féléves díjfizetés esetén: 2,5%."]
[]
[null,null,null,"Kelt:",{"$f":"keltkotveny","v":"0, 2021.07.01"}]
[null,null,null,null,null,null,null,"Szerződő cégszerű aláírása"]
[]
[]
[]
[]
[]
[]
[]
[]
[]
[]
[]
[]
[]
[]
[]
[]
[]
[]
[]
[]
[null,null,null,"UNION Vienna Insurance Group Biztosító Zrt."]
[]
[null,null,null,"A fentiek alapján ajánlatot teszek az UNION Vienna Insurance Group Biztosító Zrt. részére és kérem a kötvény, valamint a számla kiállítását."]
[null,null,null,"Tartamengedmény","¨","igen","¨","nem"]
[null,null,null,"Díjfizetés ütemezése"]
[null,null,null,"A biztosított három alábbi mutatója közül legalább kettő meghaladja-e a következő értékeket:"]
[null,null,null,"               Mérleg főösszege az 1,5 mrd. Ft-ot"]
[null,null,null,"               Nettó üzleti forgalma a 3 mrd. Ft-ot"]
[null,null,null,"               Átlagos alkalmazotti létszám az 1.000 főt"]
[]
[null,null,null,null,null,"igen",null,null,"nem"]
[]
[]
[null,null,null,"Kelt:"]
[null,null,null,null,null,null,null,null,"Szerződő cégszerű aláírása"]
[null,null,null,null,null,null,null,null,null,null,null,null,null,null,null,null,null,null,null,"biztosítási összeg (M Ft)","1) Mezőgazdasági és erdészeti gépek, targoncák","2) építőipari gépek","3.) Fa-, fém-, nyomda-, műanyag-, textilipari gépek és gépsorok","4.) Élelmiszeripari-, raktározás és logisztikai gépek; épületgépészet"]
[]
[null,null,null,null,null,null,null,null,null,null,null,null,null,null,null,null,null,null,0,10000000,{"$f":"4.2*1.1","v":4.620000000000001},{"$f":"4.62*1.1","v":5.0820000000000007},{"$f":"3.81*1.1","v":4.1910000000000007},{"$f":"3.62*1.1","v":3.9820000000000007},null,1,1,1,1]
[null,null,null,null,null,null,null,null,null,null,null,null,null,null,null,null,null,null,11000000,25000000,{"$f":"U155*0.89","v":4.1118000000000006},{"$f":"V155*0.89","v":4.5229800000000004},{"$f":"W155*0.89","v":3.7299900000000008},{"$f":"X155*0.89","v":3.5439800000000008},null,{"$f":"U156/U155","v":0.8899999999999999},{"$f":"V156/V155","v":0.89},{"$f":"W156/W155","v":0.89},{"$f":"X156/X155","v":0.89}]
[null,null,null,null,null,null,null,null,null,null,null,null,null,null,null,null,null,null,21000000,50000000,{"$f":"U156*0.9","v":3.7006200000000007},{"$f":"V156*0.88","v":3.9802224000000006},{"$f":"W156*0.88","v":3.2823912000000006},{"$f":"X156*0.88","v":3.1187024000000005},null,{"$f":"U157/U155","v":0.80099999999999993},{"$f":"V157/V155","v":0.78320000000000001},{"$f":"W157/W155","v":0.78320000000000001},{"$f":"X157/X155","v":0.78320000000000001}]
[null,null,null,null,null,null,null,null,null,null,null,null,null,null,null,null,null,null,51000000,100000000,{"$f":"U157*0.91","v":3.3675642000000008},{"$f":"V157*0.86","v":3.4229912640000006},{"$f":"W157*0.86","v":2.8228564320000005},{"$f":"X157*0.86","v":2.6820840640000005},null,{"$f":"U158/U155","v":0.72891000000000006},{"$f":"V158/V155","v":0.67355200000000004},{"$f":"W158/W155","v":0.67355200000000004},{"$f":"X158/X155","v":0.67355200000000004}]
[null,null,null,null,null,null,null,null,null,null,null,null,null,null,null,null,null,null,101000000,250000000,{"$f":"U158*0.92","v":3.0981590640000007},{"$f":"V158*0.865","v":2.9608874433600003},{"$f":"W158*0.865","v":2.4417708136800003},{"$f":"X158*0.865","v":2.3200027153600002},null,{"$f":"U159/U155","v":0.6705972},{"$f":"V159/V155","v":0.58262247999999994},{"$f":"W159/W155","v":0.58262247999999994},{"$f":"X159/X155","v":0.58262247999999994}]
[null,null,null,null,null,null,null,null,null,null,null,null,null,null,null,null,null,null,251000000]
[]
[null,null,null,null,null,null,null,null,null,null,null,null,null,null,null,null,null,null,null,"alapönrész",null,"10 %, de min. 100 000 Ft/ kár",null,1]
[null,null,null,null,null,null,null,null,null,null,null,null,null,null,null,null,null,null,null,null,null,"10 %, de min. 250 000 Ft/ kár",null,0.9]
[null,null,null,null,null,null,null,null,null,null,null,null,null,null,null,null,null,null,null,null,null,"10 %, de min. 500 000 Ft/ kár",null,0.8]
[]
[null,null,null,null,null,null,null,null,null,null,null,null,null,null,null,null,null,null,null,null,"önrész szorzó",{"$f":"IF(V42=V162,X162,IF(V42=V163,X163,IF(V42=V164,X164)))","v":1},null,null,"bö szorzó",{"$f":"IF(F44<=T155,AA155,IF(F44<=T156,AA156,IF(F44<=T157,AA157,IF(F44<=T158,AA158,IF(F44<=T159,AA159,\"túl nagy b.ö.\")))))","v":1}]
[]
[]
[null,null,null,null,null,null,null,null,null,null,null,null,null,null,null,null,null,null,null,null,"géptip szozó",{"$f":"IF(D5=U153,U155,IF(D5=V153,V155,IF(D5=W153,W155,IF(D5=X153,X155))))","v":false},null,null,null,{"$f":"Z166*V169*V166","v":0}]
[]
[null,null,null,null,null,null,null,null,null,null,null,null,null,null,null,null,null,null,null,null,null,"minimum díj:",30000]
[]
[null,null,null,null,null,null,null,null,null,null,null,null,null,null,null,null,null,null,null,null,null,"egyedi gépérték max:",100000000]
[]
[]
[]
[]
[]
[null,null,null,null,null,null,null,null,null,null,null,null,null,null,null,null,null,false]
[null,null,null,null,null,null,null,null,null,null,null,null,null,null,null,{"$f":"Díjösszesítő!F186","v":1}]

{"sheet":"All Risks Gépbiztosítás","index":6,"n_rows":186,"n_cols":44,"rows_kept":186,"cut":false,"hidden":false,"merged":[[60,3,61,6],[88,7,88,12],[35,9,35,11],[52,10,52,12],[54,10,54,12],[48,6,48,8],[42,3,42,4],[69,3,69,12],[70,3,70,12],[31,9,31,11],[58,3,58,6],[58,8,58,12],[33,3,33,4],[34,3,34,4],[34,9,34,11],[32,3,32,4],[28,3,28,4],[29,3,29,4],[30,3,30,4],[22,9,22,11],[23,9,23,11],[24,9,24,11],[25,9,25,11],[26,9,26,11],[28,9,28,11],[29,9,29,11],[30,9,30,11],[22,3,22,4],[23,3,23,4],[27,9,27,11],[27,3,27,4],[18,3,18,4],[19,3,19,4],[20,3,20,4],[21,3,21,4],[26,3,26,4],[21,22,21,25],[13,21,13,25],[15,9,15,11],[16,9,16,11],[17,9,17,11],[18,9,18,11],[19,9,19,11],[20,9,20,11],[21,9,21,11],[17,3,17,4],[9,0,123,0],[111,3,111,13],[123,8,123,11],[103,3,103,10],[53,6,53,8],[54,6,54,8],[83,3,83,12],[74,3,74,12],[77,3,80,12],[33,9,33,11],[15,3,15,4],[16,3,16,4],[71,3,71,12],[24,3,24,4],[25,3,25,4],[89,7,89,12],[87,7,87,11],[0,6,0,8],[9,3,9,11],[4,1,4,6],[12,5,12,11],[43,5,43,8],[35,3,35,4],[36,3,36,4],[37,3,37,4],[38,3,38,4],[39,3,39,4],[40,3,40,4],[41,3,41,4],[32,9,32,11],[31,3,31,4]]}
["All Risks Gépbiztosítás",null,null,null,null,null,"Záradékok:"]
["Telephelyen kívüli a munkavégzés:"]
["Géplista:"]
[null,null,null,null,null,null,null,null,null,null,null,null,null,null,null,null,null,null,null,null,null,null,null,null,null,null,null,null,null,null,null,null,null,null,null,null,null,null,null,null,null,null,null,"Beviteli sorok száma:"]
["Biztosított gépkategória","mezőgazd. és erdészeti gépek, targoncák (kivéve kombájnok, arató-, cséplőgépek, szárítók)"]
[null,null,null,null,null,null,null,null,null,null,null,null,null,null,null,null,null,null,null,null,true]
["Önrész",null,null,"de min."]
[]
[null,null,null,null,null,null,null,null,null,null,null,null,null,null,null,null,null,null,null,null,false]
["All Risks Gépbiztosítás",null,null,"All Risks Gépbiztosítás",null,null,null,null,null,null,null,null,null,null,null,null,null,null,null,{"$f":"IF(AND(U62=FALSE,U63=FALSE,U64=FALSE,U65=FALSE,U66=FALSE,U67=FALSE),1,0)","v":0}]
[]
[]
[null,null,null,"Biztosított kockázatok:",null,"az All Risks Gépbiztosítás feltételei szerint",null,null,null,null,null,null,null,null,null,null,null,null,null,null,"biztosítási összeg (M Ft)",null,"1) Mezőgazdasági és erdészeti gépek, targoncák","2) építőipari gépek","3.) Fa-, fém-, nyomda-, műanyag-, textilipari gépek és gépsorok","4.) Élelmiszeripari-, raktározás és logisztikai gépek; épületgépészet"]
[null,null,null,null,null,null,null,null,null,null,null,null,null,null,null,null,null,null,null,null,null,"Legutolsó módosítás: 2014.10.16 - *0,85"]
[null,null,null,"Géplista",null,null,null,null,null,null,null,null,null,null,null,null,null,null,null,null,0,10000000,{"$f":"5.23*0.85*1.1","v":4.8900500000000005},{"$f":"5.54*0.85*1.1","v":5.1798999999999999},{"$f":"4.96*0.85*1.1","v":4.6376000000000008},{"$f":"4.72*0.85*1.1","v":4.4131999999999998},1]
[null,null,null,"Megnevezés",null,"Gyártmány, Típus","Azonosító szám","Gyárt. év","Egyedi gépérték (bizt. összeg)","Értékelés alapja",null,null,"Alapdíj (Ft)",null,"Gépcsoport",null,null,null,"új érték",null,10000001,25000000,{"$f":"W15*0.89","v":4.3521445000000005},{"$f":"X15*0.89","v":4.6101109999999998},{"$f":"Y15*0.89","v":4.1274640000000007},{"$f":"Z15*0.89","v":3.9277479999999998},0.89,"Gépcsoport",null,"Szorzó","Alapdíj"]
[null,null,null,null,null,null,null,null,null,null,null,null,{"$f":"IF(AND($M$44=allriskmindij,AE17<>\"\",AE17>0),\"Minimum díj!\",AE17)","v":""},null,{"$f":"IF(AND(AC17>2,AC17<19),allriskcsop1,IF(AND(AC17>19,AC17<40),allriskcsop2,IF(AND(AC17>40,AC17<84),allriskcsop3,IF(AND(AC17>84,AC17<122),allriskcsop4,\"\"))))","v":""},null,null,null,"műszaki avult",null,25000001,50000000,{"$f":"W16*0.9*1.1","v":4.3086230550000009},{"$f":"X16*0.9","v":4.1490999000000004},{"$f":"Y16*0.9","v":3.7147176000000006},{"$f":"Z16*0.9","v":3.5349732},{"$f":"AA16*0.9","v":0.80100000000000005},"",{"$f":"IFERROR(VLOOKUP(AB17,allrisklista!$A$3:$B$139,2,FALSE),0)","v":0},{"$f":"IF(I17<=$V$15,$AA$15,IF(I17<=$V$16,$AA$16,IF(I17<=$V$17,$AA$17,IF(I17<=$V$18,$AA$18,IF(I17<=$V$19,$AA$19,\"túl nagy b.ö.\")))))*$V$57*IF(O17=allriskcsop1,$W$15,IF(O17=allriskcsop2,$X$15,IF(O17=allriskcsop3,$Y$15,IF(O17=allriskcsop4,$Z$15,0))))","v":0},{"$f":"IF($F$44>$S$21,0,IF(AD17=0,IF(I17>0,0,\"\"),I17*AD17/1000))","v":""}]
[null,null,null,null,null,null,null,null,null,null,null,null,"",null,"",null,null,null,null,null,50000001,100000000,{"$f":"W17*0.91","v":3.9208469800500008},{"$f":"X17*0.91","v":3.7756809090000005},{"$f":"Y17*0.91","v":3.3803930160000006},{"$f":"Z17*0.91","v":3.2168256120000001},{"$f":"AA17*0.91","v":0.72891000000000006},"",{"$f":"IFERROR(VLOOKUP(AB18,allrisklista!$A$3:$B$139,2,FALSE),0)","v":0},{"$f":"IF(I18<=$V$15,$AA$15,IF(I18<=$V$16,$AA$16,IF(I18<=$V$17,$AA$17,IF(I18<=$V$18,$AA$18,IF(I18<=$V$19,$AA$19,\"túl nagy b.ö.\")))))*$V$57*IF(O18=allriskcsop1,$W$15,IF(O18=allriskcsop2,$X$15,IF(O18=allriskcsop3,$Y$15,IF(O18=allriskcsop4,$Z$15,0))))","v":0},{"$f":"IF($F$44>$S$21,0,IF(AD18=0,IF(I18>0,0,\"\"),I18*AD18/1000))","v":""}]
[null,null,null,null,null,null,null,null,null,null,null,null,"",null,"",null,null,null,50000000,null,100000001,250000000,{"$f":"W18*0.92","v":3.607179221646001},{"$f":"X18*0.92","v":3.4736264362800005},{"$f":"Y18*0.92","v":3.1099615747200007},{"$f":"Z18*0.92","v":2.9594795630400004},{"$f":"AA18*0.92","v":0.67059720000000012},"",{"$f":"IFERROR(VLOOKUP(AB19,allrisklista!$A$3:$B$139,2,FALSE),0)","v":0},0,""]
[null,null,null,null,null,null,null,null,null,null,null,null,"",null,"",null,null,null,null,null,null,null,null,null,null,null,null,"",{"$f":"IFERROR(VLOOKUP(AB20,allrisklista!$A$3:$B$139,2,FALSE),0)","v":0},0,""]
[null,null,null,null,null,null,null,null,null,null,null,null,"",null,"",null,null,null,500000000,null,null,null,null,null,null,null,null,"",{"$f":"IFERROR(VLOOKUP(AB21,allrisklista!$A$3:$B$139,2,FALSE),0)","v":0},0,""]
[null,null,null,null,null,null,null,null,null,null,null,null,"",null,"",null,null,null,null,null,null,null,"Old díjtételz'",null,null,null,null,"",{"$f":"IFERROR(VLOOKUP(AB22,allrisklista!$A$3:$B$139,2,FALSE),0)","v":0},0,""]
[null,null,null,null,null,null,null,null,null,null,null,null,"",null,"",null,null,null,null,null,null,null,5.23,5.54,4.96,4.72,null,"",{"$f":"IFERROR(VLOOKUP(AB23,allrisklista!$A$3:$B$139,2,FALSE),0)","v":0},0,""]
[null,null,null,null,null,null,null,null,null,null,null,null,"",null,"",null,null,null,null,"Gyártási év list",null,null,{"$f":"W23*0.89","v":4.6547000000000001},{"$f":"X23*0.89","v":4.9306000000000001},{"$f":"Y23*0.89","v":4.4143999999999997},{"$f":"Z23*0.89","v":4.2008000000000001},null,"",{"$f":"IFERROR(VLOOKUP(AB24,allrisklista!$A$3:$B$139,2,FALSE),0)","v":0},0,""]
[null,null,null,null,null,null,null,null,null,null,null,null,"",null,"",null,null,null,null,{"$f":"YEAR(TODAY())","v":2021},null,null,{"$f":"W24*0.9","v":4.1892300000000002},{"$f":"X24*0.9","v":4.4375400000000003},{"$f":"Y24*0.9","v":3.9729599999999996},{"$f":"Z24*0.9","v":3.7807200000000001},null,"",{"$f":"IFERROR(VLOOKUP(AB25,allrisklista!$A$3:$B$139,2,FALSE),0)","v":0},0,""]
[null,null,null,null,null,null,null,null,null,null,null,null,"",null,"",null,null,null,null,{"$f":"T25-1","v":2020},null,null,{"$f":"W25*0.91","v":3.8121993000000005},{"$f":"X25*0.91","v":4.0381614000000008},{"$f":"Y25*0.91","v":3.6153935999999995},{"$f":"Z25*0.91","v":3.4404552000000002},null,"",{"$f":"IFERROR(VLOOKUP(AB26,allrisklista!$A$3:$B$139,2,FALSE),0)","v":0},0,""]
[null,null,null,null,null,null,null,null,null,null,null,null,"",null,"",null,null,null,null,{"$f":"T26-1","v":2019},null,null,{"$f":"W26*0.92","v":3.5072233560000008},{"$f":"X26*0.92","v":3.7151084880000007},{"$f":"Y26*0.92","v":3.3261621119999996},{"$f":"Z26*0.92","v":3.1652187840000003},null,"",{"$f":"IFERROR(VLOOKUP(AB27,allrisklista!$A$3:$B$139,2,FALSE),0)","v":0},0,""]
[null,null,null,null,null,null,null,null,null,null,null,null,"",null,"",null,null,null,null,2018,null,null,null,null,null,null,null,"",{"$f":"IFERROR(VLOOKUP(AB28,allrisklista!$A$3:$B$139,2,FALSE),0)","v":0},0,""]
[null,null,null,null,null,null,null,null,null,null,null,null,"",null,"",null,null,null,null,2017,null,null,null,null,null,null,null,"",{"$f":"IFERROR(VLOOKUP(AB29,allrisklista!$A$3:$B$139,2,FALSE),0)","v":0},0,""]
[null,null,null,null,null,null,null,null,null,null,null,null,"",null,"",null,null,null,null,2016,null,null,null,null,null,null,null,"",{"$f":"IFERROR(VLOOKUP(AB30,allrisklista!$A$3:$B$139,2,FALSE),0)","v":0},0,""]
[null,null,null,null,null,null,null,null,null,null,null,null,"",null,"",null,null,null,null,2015,null,null,null,null,null,null,null,null,{"$f":"IFERROR(VLOOKUP(AB31,allrisklista!$A$3:$B$139,2,FALSE),0)","v":0},0,""]
[null,null,null,null,null,null,null,null,null,null,null,null,"",null,"",null,null,null,null,2014,null,null,null,null,null,null,null,"",{"$f":"IFERROR(VLOOKUP(AB32,allrisklista!$A$3:$B$139,2,FALSE),0)","v":0},0,""]
[null,null,null,null,null,null,null,null,null,null,null,null,"",null,"",null,null,null,null,2013,null,null,null,null,null,null,null,null,{"$f":"IFERROR(VLOOKUP(AB33,allrisklista!$A$3:$B$139,2,FALSE),0)","v":0},0,""]
[null,null,null,null,null,null,null,null,null,null,null,null,"",null,"",null,null,null,null,2012,null,null,null,null,null,null,null,null,{"$f":"IFERROR(VLOOKUP(AB34,allrisklista!$A$3:$B$139,2,FALSE),0)","v":0},0,""]
[null,null,null,null,null,null,null,null,null,null,null,null,"",null,"",null,null,null,null,{"$f":"T34-1","v":2011},null,null,null,null,null,null,null,null,{"$f":"IFERROR(VLOOKUP(AB35,allrisklista!$A$3:$B$139,2,FALSE),0)","v":0},0,""]
[null,null,null,null,null,null,null,null,null,null,null,null,"",null,"",null,null,null,null,null,null,null,null,null,null,null,null,null,{"$f":"IFERROR(VLOOKUP(AB36,allrisklista!$A$3:$B$139,2,FALSE),0)","v":0},0,""]
[null,null,null,null,null,null,null,null,null,null,null,null,null,null,"",null,null,null,null,null,null,null,null,null,null,null,null,null,{"$f":"IFERROR(VLOOKUP(AB37,allrisklista!$A$3:$B$139,2,FALSE),0)","v":0},null,""]
[null,null,null,null,null,null,null,null,null,null,null,null,null,null,"",null,null,null,null,null,null,null,null,null,null,null,null,null,{"$f":"IFERROR(VLOOKUP(AB38,allrisklista!$A$3:$B$139,2,FALSE),0)","v":0},null,""]
[null,null,null,null,null,null,null,null,null,null,null,null,null,null,"",null,null,null,null,null,null,null,null,null,null,null,null,null,{"$f":"IFERROR(VLOOKUP(AB39,allrisklista!$A$3:$B$139,2,FALSE),0)","v":0},null,""]
[null,null,null,null,null,null,null,null,null,null,null,null,null,null,"",null,null,null,null,null,null,null,null,null,"10 %, de min. 100 000 Ft/ kár",null,null,null,{"$f":"IFERROR(VLOOKUP(AB40,allrisklista!$A$3:$B$139,2,FALSE),0)","v":0},null,""]
[null,null,null,null,null,null,null,null,null,null,null,null,null,null,"",null,null,null,null,null,null,null,null,null,"10 %, de min. 250 000 Ft/ kár",null,null,null,{"$f":"IFERROR(VLOOKUP(AB41,allrisklista!$A$3:$B$139,2,FALSE),0)","v":0},null,""]
[null,null,null,null,null,null,null,null,null,null,null,null,null,null,"",null,null,null,null,null,null,null,null,null,"10 %, de min. 500 000 Ft/ kár",null,null,null,{"$f":"IFERROR(VLOOKUP(AB42,allrisklista!$A$3:$B$139,2,FALSE),0)","v":0},null,""]
[null,null,null,null,null,null,null,null,null,null,null,null,null,null,"",null,null,null,null,null,null,null,null,null,null,null,null,null,{"$f":"IFERROR(VLOOKUP(AB43,allrisklista!$A$3:$B$139,2,FALSE),0)","v":0},null,""]
[null,null,null,"Biztosítási összeg összesen:",null,{"$f":"IF(SUM(I17:I36)>500000000,\"Nem lehet több, mint 500 millio!\",SUM(I17:I36))","v":0},null,null,null,null,null,"Összesen:",{"$f":"IF(F44<=S21,IF(AND(SUM(AE17:AE36)>0,SUM(AE17:AE36)<allriskmindij),allriskmindij,SUM(AE17:AE36)),0)","v":0}]
[null,null,null,"Önrész(ek)"]
[null,null,null,null,"alapfedezetre:",{"$f":"IF(U71,V71,V72)","v":"10%, de min."},{"$f":"IF(T52,U52,IF(T53,U53,IF(T54,U54,0)))","v":100000},null,null,null,null,null,null,null,null,null,null,null,null,null,"Minimum díj",40000]
[null,null,null,null,"közúti forgalmi kiterjesztésre:",{"$f":"IF(U71=TRUE,V71,V72)","v":"10%, de min."},{"$f":"IF(T54,U54,250000)","v":250000},null,null,null,null,null,null,null,null,null,null,null,null,null,"Záradékos min",{"$f":"I56*(allriskmindij/evesalapdij)","v":40000}]
[null,null,null,null,"kölcsöngép többletktsg. fed.-re:"]
[null,null,null,null,"lopás kockázatra:","25%, de min.",{"$f":"IF(T52,U52,IF(T53,U53,IF(T54,U54,0)))","v":100000}]
[]
[null,null,null,"Éves alapfedezet:",null,null,null,null,{"$f":"IF(AND(F44<=S21,M44<allriskmindij),allriskmindij,M44)","v":40000},null,{"$f":"IF(evesalapdij=V46,\"(minimum díj!)\",\"\")","v":"(minimum díj!)"},null,null,null,null,null,null,null,null,null,"önrész szorzók"]
[null,null,null,null,null,"pótdíj közúti forgalmi kiterjesztésre:",null,null,{"$f":"Z59","v":0},null,null,null,null,null,null,null,null,null,null,true,100000,{"$f":"IF($U$71,1,1*0.82)","v":1}]
[null,null,null,null,null,"pótdíj és szublimit kölcsöngép többletktsg. fed.-re:",null,null,{"$f":"Z60","v":0},null,{"$f":"ROUND(F44*10%,-5)","v":0},null,null,null,null,null,null,null,null,false,250000,{"$f":"IF($U$71,0.9,0.9*0.82)","v":0.9}]
[null,null,null,null,null,"pótdíj lopás kockázatra:",{"$f":"Z62","v":0},null,null,null,null,null,null,null,null,null,null,null,null,false,500000,{"$f":"IF($U$71,0.8,0.8*0.82)","v":0.8}]
[null,null,null,null,null,"pótdíj és szublimit szállítás kockázatra:",{"$f":"Z63","v":0},null,null,null,{"$f":"ROUND(F44*20%,-5)","v":0}]
[null,null,null,"Éves díj összesen:",null,null,null,null,{"$f":"SUM(G51:I55)","v":40000},null,null,null,null,null,null,null,null,null,null,null,null,null,null,"Díjtétel"]
[null,null,null,null,null,null,null,null,null,null,null,null,null,null,null,null,null,null,null,null,null,{"$f":"IF(T52,V52,IF(T53,V53,IF(T54,V54,0)))","v":1},null,{"$f":"V44*V57","v":0}]
[null,null,null,"Biztosítási feltételek"]
[null,null,null,"Általános Vagyonbiztosítási Feltételek (U70050)\nAll Risks gépbiztosítás Különös Biztosítási Feltételek (U70054)\nBetöréses lopás és rablás biztosítási Védelmi Feltételek (U71019/1)",null,null,null,null,null,null,null,null,null,null,null,null,null,null,null,null,null,null,null,null,null,{"$f":"Z61*V63","v":0},"2.sz z. pótdíj"]
[null,null,null,"ZÁRADÉKOK:",null,null,null,null,null,null,null,null,null,null,null,null,null,null,null,null,null,null,null,null,null,{"$f":"Z61*V64","v":0},"3.sz z. pótdíj"]
[null,null,null,"2.sz. záradék: munkagépek, különleges felépítményű gépjárművek fedezetének kiegészítése közúti forgalomra",null,null,null,null,null,null,null,null,null,null,null,null,null,null,null,null,null,null,"önr. min.",null,null,{"$f":"IF(M44=0,0,I51)","v":0}]
[null,null,null,null,null,null,null,null,null,null,null,null,null,null,null,null,null,null,null,null,null,null,null,null,null,{"$f":"Z61*V65","v":0},"lopás fedezet"]
[null,null,null,"3.sz. záradék kölcsöngép többletköltségének fedezete",null,null,null,null,null,null,null,null,null,null,null,null,null,null,null,"2.z.",false,{"$f":"IF(U63=TRUE,20%,0)","v":0},null,null,null,{"$f":"Z61*V66","v":0},"szálíltás fedezet",null,{"$f":"Z59+Z60+Z61+Z62+Z63","v":0}]
[null,null,null,"4.sz. záradék Gépek, berendezések lopás fedezete",null,null,null,null,null,null,null,null,null,null,null,null,null,null,null,"3.z.",false,{"$f":"IF(U64=TRUE,10%,0)","v":0}]
[null,null,null,null,null,null,null,null,null,null,null,null,null,null,null,null,null,null,null,"4.z.",true,{"$f":"IF(U65=TRUE,20%,0)","v":0.2}]
[null,null,null,"G01. :Alapzatok",null,null,"G06.: Robbantások",null,null,null,null,null,null,null,null,null,null,null,null,"5.z.",false,{"$f":"IF(U66=TRUE,15%,0)","v":0}]
[null,null,null,"G03.: Gépolajok",null,null,"G07.: Biztonságtechnikai elemek"]
[null,null,null,"G04.: Hűtőberendezések, hűtőszekrények",null,null,"G08.: Belső égésű motorok",null,null,null,null,null,null,null,null,null,null,null,null,null,null,{"$f":"SUM(V62:V67)","v":0.2},null,{"$f":"X57+(X57*V68)","v":0}]
[null,null,null,"G05.: Lánctalpas járművek",null,null,"G12.: Lecserélt részek értékcsökkenése"]
[null,null,null,"EGYÉB"]
[null,null,null,"A biztosítási szerződésen a …………………………………. (…………………………………………..) került zálogjogosultként bejegyzésre az alábbi biztosított gépet ért károk esetére, az alábbi hitel és járulékai, de maximum a biztosítási összeg erejéig. \nBiztosított gép:                  ………………………………….\nHitelszerződés száma:    …………………………\nHitel típusa:                        …………………………\nHitel kezdete:                    …………………………\nHitel lejárata:                     …………………………\nHitel összege:                   …………………………\n\nA zálogjogosult bejegyzése a biztosítás érvényességi időtartama alatt áll fenn, annak megszüntetése csak a zálogjogosult írásos kérelmére lehetséges.",null,null,null,null,null,null,null,null,null,null,null,null,null,null,null,null,true,"10%, de min."]
[null,null,null,"A biztosítási szerződésre a fentiekben hivatkozott biztosítási feltételek és az ajánlatban foglalt egyedi záradékok együttesen vonatkoznak.\nA Biztosító nem nyújt fedezetet, nem teljesít kárkifizetést, valamint nem nyújt szolgáltatást, amennyiben ezen fedezet nyújtásával, illetve kár kifizetésével a Biztosító sértené  az Egyesült Nemzetek Szervezetének határozata szerinti bármely szankcióit, rendelkezéseit, vagy rendeleteit,  valamint Magyarország, az Európai Unió, illetve az Egyesült Államok kereskedelmi, pénzügyi embargóit vagy gazdasági szankcióit, törvényeit vagy rendeleteit, (feltéve, hogy ezek nem sértik az biztosítóra alkalmazandó szabályozásokat vagy nemzeti jogszabályokat).\nNem terjed ki a biztosítás azokra a károkra, amelyek bármilyen (bakteriális, vírusos, stb.) kórokozói eredetű járványos megbetegedéssel, betegséggel, vagy fertőzéssel összefüggésben következnek be, és amelyek a kórokozó bármely fajtájától, mutációjától, illetve variánsától származnak.",null,null,null,null,null,null,null,null,null,null,null,null,null,null,null,null,false,"20%, de min."]
[]
[null,null,null,"Tartamtól függő engedmény:"]
[null,null,null,"A Biztosított / Szerződő egyoldalúan vállalja, hogy jelen biztosítási szerződést 3 évig (tartamidőszak) nem szünteti meg.\nAz UNION Vienna Insurance Group Biztosító Zrt. a Biztosított / Szerződő előbbi kötelezettségvállalása miatt 10 % tartamtól függő engedményt ad a biztosítási szerződés éves összdíjából.    \nAmennyiben Biztosított / Szerződő előbbi kötelezettségvállalása ellenére a biztosítási szerződést egyoldalúan megszünteti, ide nem értve az érdekmúlás esetét, úgy a biztosítási szerződés megszűnéséig köteles a jelen záradékban foglalt engedmény Biztosító részére történő egyösszegű visszafizetésére.\nA tartamidőszak elteltével a felek ismét megállapodhatnak a tartamtól függő engedmény előzőekben írt szabályainak újabb tartamidőszakra történő alkalmazásában. Ilyen megállapodásnak tekintendő az is, ha a tartamidőszak leteltéig sem a Biztosított / Szerződő, sem a Biztosító nem intéz a másik félhez a szerződés, illetve a tartamtól függő engedmény alkalmazásának megszűntetésére irányuló nyilatkozatot. \nA díjösszesítőn írt éves díjak a tartamtól függő engedményt nem tartalmazzák.  "]
[null,null,null,null,null,null,null,null,null,null,null,null,null,null,null,null,null,null,null,null,"Minimumdíj",40000]
[null,null,null,"Megelőlegezett kármentességi díjengedmény"]
[null,null,null,{"$f":"CONCATENATE(\"A biztosító a szerződőt a jelen szerződés tekintetében a biztosítási időszakra annak teljes díja \",elozetes.engedmeny*100&\"%\",\"-ának megfelelő mértékű megelőlegezett kármentességi díjengedményben részesíti. Amennyiben a díjengedménnyel érintett szerződés alapján kárigény érvényesítésre kerül sor \",\"és a biztosító ennek kapcsán szolgáltatás nyújtására kötelezett, a szerződő köteles a kármentességi díjengedmény összegét a \",\"biztosító számára megfizetni, illetve - amennyiben a szolgáltatás jogosultja a szerződő - a biztosító jogosult a díjengedmény összegét a szolgáltatás összegéből közvetlenül levonásba helyezni.\")","v":"A biztosító a szerződőt a jelen szerződés tekintetében a biztosítási időszakra annak teljes díja 0%-ának megfelelő mértékű megelőlegezett kármentességi díjengedményben részesíti. Amennyiben a díjengedménnyel érintett szerződés alapján kárigény érvényesítésre kerül sor és a biztosító ennek kapcsán szolgáltatás nyújtására kötelezett, a szerződő köteles a kármentességi díjengedmény összegét a biztosító számára megfizetni, illetve - amennyiben a szolgáltatás jogosultja a szerződő - a biztosító jogosult a díjengedmény összegét a szolgáltatás összegéből közvetlenül levonásba helyezni."}]
[]
[]
[]
[]
[null,null,null,"Díjfizetési engedmény:"]
[null,null,null,"Amennyiben a szerződő/biztosított a biztosítási díjat az alábbi díjfizetési gyakorisággal egyenlíti ki, akkor a biztosító a számára a fentiekben megállapított biztosítási díjakból az alábbi díjfizetési engedményeket nyújtja."]
[null,null,null," - éves díjfizetés esetén: 5%"]
[null,null,null," - féléves díjfizetés esetén: 2,5%."]
[]
[null,null,null,"Kelt:",{"$f":"keltkotveny","v":"0, 2021.07.01"}]
[null,null,null,null,null,null,null,"Szerződő cégszerű aláírása"]
[null,null,null,null,null,null,null,"UNION Vienna Insurance Group Biztosító Zrt."]
[]
[]
[]
[]
[]
[]
[]
[]
[]
[]
[]
[]
[]
[]
[]
[]
[]
[]
[]
[null,null,null,"UNION Vienna Insurance Group Biztosító Zrt."]
[]
[null,null,null,"A fentiek alapján ajánlatot teszek az UNION Vienna Insurance Group Biztosító Zrt. részére és kérem a kötvény, valamint a számla kiállítását."]
[null,null,null,"Tartamengedmény","¨","igen","¨","nem"]
[null,null,null,"Díjfizetés ütemezése"]
[null,null,null,"A biztosított három alábbi mutatója közül legalább kettő meghaladja-e a következő értékeket:"]
[null,null,null,"               Mérleg főösszege az 1,5 mrd. Ft-ot"]
[null,null,null,"               Nettó üzleti forgalma a 3 mrd. Ft-ot"]
[null,null,null,"               Átlagos alkalmazotti létszám az 1.000 főt"]
[]
[null,null,null,null,null,"igen",null,null,"nem"]
[]
[]
[null,null,null,"Kelt:"]
[null,null,null,null,null,null,null,null,"Szerződő cégszerű aláírása"]
[]
[]
[]
[]
[]
[]
[]
[]
[]
[]
[]
[]
[]
[]
[]
[]
[]
[]
[]
[]
[]
[]
[]
[]
[]
[]
[]
[]
[]
[]
[]
[]
[]
[]
[]
[]
[]
[]
[]
[]
[]
[]
[]
[]
[]
[]
[]
[]
[]
[]
[]
[]
[]
[]
[]
[]
[]
[]
[]
[]
[null,null,null,null,null,null,null,null,null,null,null,null,null,null,null,null,null,false]
[null,null,null,null,null,null,null,null,null,null,null,null,null,null,null,{"$f":"Díjösszesítő!F186","v":1}]

{"sheet":"Társbiztosítotti nyilatkozat","index":7,"n_rows":43,"n_cols":14,"rows_kept":43,"cut":false,"hidden":true,"merged":[[42,9,42,12],[38,1,38,6],[31,2,31,4],[31,7,31,9],[28,3,28,5],[41,9,41,12],[27,3,27,5],[0,0,0,13],[12,0,12,13],[19,0,19,13],[33,0,33,13],[26,6,26,9],[22,8,22,9],[23,2,23,5],[23,8,23,12],[1,2,1,3],[14,6,14,8],[16,0,16,3],[16,5,16,12],[21,4,21,7],[13,1,13,5],[14,0,14,2]]}
["NYILATKOZAT TÁRSBIZTOSÍTOTT BEJEGYZÉSÉHEZ"]
[null,"Értesítés a",null,null,"kötvényszámú biztosítási szerződéshez kapcsolódó változásról"]
[]
[]
["Union Vienna Insurance Group Biztosító Zrt."]
["Vezérigazgatóság"]
[]
["Budapest"]
["Baross u. 1."]
[1082]
[]
[]
["1. A(z) …………………..(szerződő)…………….. cégszerű képviseletében ezúton kérem Önöket, hogy a ………………. kockázatviselési kezdettel ……………………kötvényszámon Önökkel megkötött, egyedi vagyonbiztosítási szerződés esetében a szolgáltatási összeg tekintetében a finanszírozás futamidejére a …………………………….(lízingcég neve) re ( lízingcég címe.), mint Társbiztosítottat bejegyezni szíveskedjenek."]
["1. A(z)",{"$f":"Díjösszesítő!L42","v":0},null,null,null,null,"cégszerű képviseletében ezúton kérem Önöket, hogy a"]
[null,null,null,"kockázatviselési kezdettel",null,null,null,null,null,"kötvényszámon Önökkel megkötött,"]
["egyedi vagyonbiztosítási szerződés esetében a szolgáltatási összeg tekintetében a finanszírozás futamidejére a "]
[{"$f":"IF(Díjösszesítő!H58<>\"\",Díjösszesítő!H58,\"\")","v":""},null,null,null,"re cím",{"$f":"Díjösszesítő!E60&\" \"&Díjösszesítő!J60&\", \"&Díjösszesítő!V60&\" \"&Díjösszesítő!AI60","v":" ,  "},null,null,null,null,null,null,null,","]
["mint Társbiztosítottat bejegyezni szíveskedjenek."]
[]
["2. Kérem, hogy jelen levelünk kézhezvételét követően a fent megjelölt biztosítási szerződésben meghatározott biztosítási események által a biztosított ………………………………………… vagyontárgyakban bekövetkezett káresemények esetén az önrészesedést meghaladó szolgáltatási összeget legfeljebb… …………………..Ft értékhatárig  közvetlenül a Társbiztosított …………………. banknál  vezetett ……………………………………………………………………………..számú  számlájára  átutalással teljesíteni szíveskedjenek."]
["2. Kérem, hogy jelen levelünk kézhezvételét követően a fent megjelölt biztosítási szerződésben meghatározott biztosítási"]
["események   által   a   biztosított\n                                           ",null,null,null,null,null,null,null,"vagyontárgyakban bekövetkezett káresemények "]
["esetén az önrészesedést meghaladó szolgáltatási összeget legfeljebb",null,null,null,null,null,null,null,null,null,"értékhatárig  közvetlenül a "]
["Társbiztosított ",null,null,null,null,null,"banknál  vezetett "]
["számú  számlájára  átutalással teljesíteni szíveskedjenek."]
[]
["3. A Társbiztosított részéről a kapcsolattartó személy: "]
["Hitelszerződés száma:"]
["Finanszírozás időtartama:"]
[]
["4. Vagyontárgy(ak) – vagyoncsoporton belül: "]
["megnevezés:",null,null,null,null,null,"gyáriszám:"]
[]
["5. Hozzájárulok ahhoz, hogy a fent megjelölt biztosítási szerződés részét képező, biztosítási titoknak "]
["minősülő adatainkat az UNION Biztosító ZRt. a társbiztosított részére megadja. "]
[]
[]
[]
["Kelt: "]
[]
[]
[]
[null,null,null,null,null,null,null,null,null,"szerződő"]

{"sheet":"Zálogkötelezetti nyilatkozat","index":8,"n_rows":53,"n_cols":9,"rows_kept":53,"cut":false,"hidden":true,"merged":[[52,6,52,7],[43,4,43,8],[44,4,44,8],[45,3,45,4],[45,7,45,8],[46,3,46,4],[46,7,46,8],[49,1,49,3],[26,1,26,8],[39,0,39,8],[42,4,42,8],[51,6,51,7],[34,3,34,4],[35,3,35,4],[36,3,36,4],[37,3,37,4],[38,3,38,4],[15,0,15,8],[19,0,19,8],[20,0,20,8],[21,0,21,8],[25,3,25,4],[11,0,11,8],[12,0,12,8],[14,0,14,1],[14,2,14,8],[13,3,13,8],[1,0,1,8],[4,1,4,8],[5,2,5,8],[7,3,7,4],[8,0,8,8]]}
[]
["ZÁLOGKÖTELEZETTI NYILATKOZAT"]
[]
["Szerződő/Biztosított adatai"]
["Név:",{"$f":"Díjösszesítő!L42","v":0}]
["Adószáma:",null,{"$f":"Díjösszesítő!G44","v":0}]
["Székhelye"]
["Ir.sz.",{"$f":"szerz.irsz","v":0},"helység",{"$f":"Díjösszesítő!H47","v":0},null,"utca",{"$f":"szerz.cim","v":0},"házsz.em.ajtó",{"$f":"szerz.hsz","v":0}]
["Hozzájárulok, hogy a Biztosító az itt megadott, biztosítási titoknak minősülő adataimat, a jelen nyilatkozatban megjelölt Zálogjogosult hitelintézetnek átadja."]
[]
["Biztosított/Zálogkötelezett nyilatkozata"]
["Alulírott Biztosított tájékoztatom az UNION Vienna Insurance Group Biztosító Zrt-t (továbbiakban: Biztosító), hogy a jelen nyomtatványon megjelölt kockázatviselési címen fellelhető vagyontárgyra, mint Zálogtárgyra vonatkozóan köztem – mint Zálogkötelezett – és a lent megjelölt hitelintézet – mint Zálogjogosult – között Zálogszerződés jött létre. Felhatalmazom a Biztosítót, hogy az itt hivatkozott Zálogtárgyra kötött biztosítási szerződésen a Zálogjogosultat megillető hitelbiztosítéki záradékot jegyezzen be."]
["Felhatalmazom a Biztosítót, hogylegfeljebb a biztosított vagyontárgyak biztosítási összegének mértékéig terjedő teljes szolgáltatási összeget, közvetlenül a(z) "]
["Zálogjogosult neve:",null,null,{"$f":"Díjösszesítő!H58","v":0}]
["Székhelye:",null,{"$f":"Díjösszesítő!E60&\" \"&Díjösszesítő!J60&\", \"&Díjösszesítő!V60&\" \"&Díjösszesítő!AI60","v":" ,  "}]
["Zálogjogosult  által vezetett számlára való átutalással teljesítse."]
[]
["Szerződő nyilatkozata"]
["Alulírott Szerződő felhatalmazom a Biztosítót az alábbiakra:"]
["- amennyiben a lentebb megjelölt biztosítási szerződés nem jön létre, úgy ennek tényéről a biztosítási ajánlat elutasításával egyidejűleg tájékoztathassa a Zálogjogosultat."]
["- a biztosítási szerződésen a Zálogkötelezett jelen teljesítési utasítása alapján bejegyzett Zálogjogosultat megillető hitelbiztosítéki záradékot, annak külön hozzájárulása nélkül ne törölje,"]
["a biztosítási szerződés aktuális díjrendezettségi státuszát a Zálogjogosult megkeresésére – külön eljárásban – esetileg kiadja."]
[]
["Zálogtárgy adatai"]
["Kockázatviselési cím:"]
["Ir.sz.",null,"helység",null,null,"utca",null,"házsz.em.ajtó"]
["HRSZ:"]
["Hitelfedezet tárgya:"]
["Biztosítási ajánlat/szerződés azonosítója:"]
["Biztosítási szerződés tartama: ",null,null,null,null,null,"Díjfizetés gyakorisága:"]
["Kockázatviselés kezdete:"]
["Épületbiztosítás biztosítási összege:",null,null,null,null,null,null,"Ft"]
["Gép, berendezés, felszerelés biztosítási összege:",null,null,null,null,null,null,"Ft"]
["Készlet biztosítási összege:",null,null,null,null,null,null,"Ft"]
["Egyéb vagyontárgy :",null,null,null,null,null,null,"Ft"]
[null,null,null,null,null,null,null,"Ft"]
[null,null,null,null,null,null,null,"Ft"]
[null,null,null,null,null,null,null,"Ft"]
[null,null,null,null,null,null,null,"Ft"]
["Hozzájárulok, hogy a Biztosító az itt megadott, biztosítási titoknak minősülő szerződési adatokat, a jelen nyilatkozatban megjelölt Zálogjogosult hitelintézetnek átadja."]
[]
["Zálogjogosult adatai"]
["Zálogjogosult hitelintézet neve:",null,null,null,{"$f":"D14","v":0}]
["Székhelye:",null,null,null,{"$f":"C15","v":" ,  "}]
["Hitelszerződés száma/azonosítója:"]
["Hitelszerződés kezdete:",null,null,null,null,null,"Hitel típusa:"]
["Hitelszerződés lejárata:",null,null,null,null,null,"Hitel összege:"]
[]
[]
["Kelt:"]
[]
[null,null,null,null,null,null,"Szerződő/Biztosított"]
[null,null,null,null,null,null,"aláírása"]

{"sheet":"Verzió","index":9,"n_rows":5,"n_cols":4,"rows_kept":5,"cut":false,"hidden":true,"merged":[]}
[]
[]
[]
[null,"Dátum érvényesség","Verzió","Jelszó"]
[null,"2021-12-31","1.96","Csillagharcosok"]

{"sheet":"elberlista","index":10,"n_rows":45,"n_cols":2,"rows_kept":45,"cut":false,"hidden":true,"merged":[]}
["ELBER besorolás"]
[]
["--- 1. Számítás- és irodatechnikai gépek (kizárólag kockázatviselési helyen), épületgépészethez tartozó elektronikus eszközök ---",3]
["Garázstechnika: sorompó, kapu, jegyautomata",4]
["Helyiségvédő, riasztó és tűzjelző berendezések",5]
["Irodagépek (írógép, számológép, másológép)",6]
["Munkaidő ellenőrző berendezés, beléptető rendszer",7]
["Számítógépek (rendszerek) ",8]
["Telefax készülék ",9]
["Telefon központok",10]
["Telex készülék",11]
[null,12]
["--- 2. Orvosi, kozmetikai és tudományos kutatás gépei ---",13]
["Orvosi berendezések",14]
["Fogorvosi berendezések",15]
["Orvosi computertomográf",16]
["Orvosi nukleáris (izotópos) kezelő berendezések",17]
["Orvosi nukleáris (izotópos) vizsgáló berendezések",18]
["Orvosi röntgen berendezések",19]
["Orvosi ultrahang készülékek",20]
[null,21]
["--- 3.) Grafikai, nyomdatechnikai eszközök ---",22]
["elektronikus, számítógép vezérlésű nyomdagépek",23]
["fényszedő, fotószedő berendezések",24]
["Fotóberendezések",25]
["nyomdai fotógép",26]
[null,27]
["--- 4.) Telekomminikációs eszközök, automatizálás és méréstechnika gépei, szórakoztató elektronika ---",28]
["Ipari elektronika",29]
["Ipari röntgen berendezés",30]
["Ipari televízió rendszer",31]
["Mobil ipari elektronika",32]
["Mozitechnikai berendezések",33]
["Műsorszóró és adatátviteli berendezések",34]
["Stúdió berendezések: beépített berendezések",35]
[null,36]
[null,37]
[null,38]
[null,39]
[null,40]
[null,41]
[null,42]
[null,43]
[null,44]
[null,45]

{"sheet":"geptoreslista","index":11,"n_rows":121,"n_cols":2,"rows_kept":121,"cut":false,"hidden":true,"merged":[]}
["Géptörés besorolás"]
[]
["--- 1) Mezőgazdasági és erdészeti gépek, targoncák ---",3]
["Siló: szabad téren",4]
["Siló: zárt térben",5]
[null,6]
["--- 2) építőipari gépek ---",7]
["aszfaltkeverő telep",8]
["betonkeverő telep",9]
["betonkő-, műkő gyártás gépei",10]
["betonszivattyú",11]
["darabológép",12]
["égető/szárító kemence",13]
["hidraulikus  kalapács",14]
["keverő-, szállító berendezés ",15]
["kő/tégla sajtó",16]
["kőfeldolgozás gépei",17]
["osztályozógép  rosta, szita, ülepítő",18]
["tömörítő (vibrátor): ",19]
["útburkolatfestő",20]
["útburkolatmaró (aszfalt/beton)",21]
["úthenger (vibrációs henger)",22]
["vakológép",23]
[null,24]
["--- 3.) Fa-, fém-, nyomda-, műanyag-, textilipari gépek és gépsorok ---",25]
["aprító-, faragó-, forgácsoló gép",26]
["bőrgyártás, cserzés gépei",27]
["daraboló-, vágógép",28]
["deszka osztályozó és csomagoló gép",29]
["előkészítő gépek",30]
["eszterga-, fúró-, gyalu-, maró-, vésőgép",31]
["eszterga-, gyalu-, marógép",32]
["farostlemez prés",33]
["felületi bevonás, galvanizálás gépei",34]
["fémkereső készülék",35]
["fonó-, szövő-, kötő-, hurkoló-, himzőgép",36]
["forgácslemez prés",37]
["fűrész-, csiszológép",38]
["gömbfa (szálfa) osztályozó",39]
["hántoló-, furnérvágó gép",40]
["hegesztési technológia gépei",41]
["hideg lemezalakítás gépei",42]
["huzalgyártás és feldolgozás gépei",43]
["ívnyomtató ",44]
["kalander",45]
["kártológép",46]
["kasírozó és hullámkarton gyártó gép",47]
["könyvkötő gép",48]
["lemezcsiszoló gép",49]
["mosó-, szárító automata",50]
["nyomdai fotógép",51]
["nyomtató automata",52]
["papír és karton gyártó gépsor",53]
["présgép",54]
["rétegeltlemez prés",55]
["sajtoló szerszám, dombornyomó prés",56]
["sajtoló-, vágó-, lyukasztógép",57]
["szabászgép",58]
["szárító berendezés",59]
["szárító-, impregnáló berendezés",60]
["szedő-, betüöntő gép",61]
["szitanyomó-, flexonyomógép",62]
["szűrő-, elszívó berendezés",63]
["tekercsről nyomtató rotációs gép",64]
["vagógép/gyorsvágó",65]
["varrógép",66]
["vegytisztító automata",67]
[null,68]
["--- 4.) Élelmiszeripari-, raktározás és logisztikai gépek; épületgépészet ---",69]
["Csőposta (iratszállító berendezés)",70]
["Egyenirányító, teleptöltő",71]
["Elektromos motor",72]
["emelővillás targonca",73]
["erjesztő szekrény ",74]
["ferdepályás felvonó",75]
["főzőüst",76]
["füstölő",77]
["Gázkazán: csak fűtés",78]
["Gázkazán: fűtés és melegvíz",79]
["Generátor",80]
["gyümölcsprés, szűrő-, ülepítő berendezés",81]
["hús daraboló-, daráló- és egyéb aprítógép",82]
["Hűtőgép (fagylaltkészítő gép)",83]
["Hűtőkamra",84]
["Hűtőpult",85]
["Kapcsoló berendezés, állomás",86]
["Klímaberendezés",87]
["Konyhagép: telepített",88]
["Lift, személyfelvonó",89]
["Melegvíz tároló (bojler)",90]
["mobil mérleg",91]
["Mozgólépcső",92]
["Palack- és hordómosó berendezés",93]
["Pálinkafőző (lepárló)",94]
["Páternoszter",95]
["Porszívó (ipari)",96]
["raktári emelő berendezés",97]
["sütőkemence ",98]
["szállítószalag, szállítócsiga",99]
["szárító berendezés ",100]
["Szellőztető berendezés",101]
["szeparátor, centrifuga ",102]
["Szivattyú",103]
["telepített mérleg",104]
["tésztagyúró-, tésztakeverő berendezés",105]
[null,106]
[null,107]
[null,108]
[null,109]
[null,110]
[null,111]
[null,112]
[null,113]
[null,114]
[null,115]
[null,116]
[null,117]
[null,118]
[null,119]
[null,120]
[null,121]

{"sheet":"allrisklista","index":12,"n_rows":139,"n_cols":2,"rows_kept":139,"cut":false,"hidden":true,"merged":[]}
["All risk gépbiztosítás"]
[]
["--- 1) Mezőgazdasági és erdészeti gépek, targoncák ---",3]
["bálázó",4]
["betakarító gép",5]
["gallyazó gép",6]
["kéregtelenítő gép",7]
["mosó berendezés",8]
["műtrágya/vegyszer szórógép",9]
["rönkszállító jármű",10]
["Siló: szabad téren",11]
["Siló: zárt térben",12]
["talajmegmunkáló gép",13]
["tehergépkocsira szerelt daru",14]
["traktor",15]
["vetőgép",16]
["vontatógép",17]
["zöldtakarmány szárító",18]
[null,19]
["--- 2) építőipari gépek ---",20]
["aszfaltkeverő ",21]
["betonkeverő telep",22]
["betonkő-, műkő gyártás gépei",23]
["betonszivattyú",24]
["darabológép",25]
["döngölő-, cölöpölő gép",26]
["égető/szárító kemence",27]
["hidraulikus mobil kalapács",28]
["keverő-, szállító berendezés ",29]
["kotró-, rakodógép",30]
["kő/tégla sajtó",31]
["kőfeldolgozás gépei",32]
["mobil keverők",33]
["osztályozógép  rosta, szita, ülepítő",34]
["tömörítő (vibrátor)",35]
["útburkolatfestő",36]
["útburkolatmaró (aszfalt/beton)",37]
["úthenger (vibrációs henger)",38]
["vakológép",39]
[null,40]
["--- 3.) Fa-, fém-, nyomda-, műanyag-, textilipari gépek és gépsorok ---",41]
["aprító-, faragó-, forgácsoló gép",42]
["bőrgyártás, cserzés gépei",43]
["daraboló-, vágógép",44]
["deszka osztályozó és csomagoló gép",45]
["előkészítő gépek",46]
["eszterga-, fúró-, gyalu-, maró-, vésőgép",47]
["eszterga-, gyalu-, marógép",48]
["farostlemez prés",49]
["felületi bevonás, galvanizálás gépei",50]
["fémkereső készülék",51]
["fonó-, szövő-, kötő-, hurkoló-, himzőgép",52]
["forgácslemez prés",53]
["fűrész-, csiszológép",54]
["gatter",55]
["gömbfa (szálfa) osztályozó",56]
["hántoló-, furnérvágó gép",57]
["hegesztési technológia gépei",58]
["hideg lemezalakítás gépei",59]
["huzalgyártás és feldolgozás gépei",60]
["ívnyomtató ",61]
["kalander",62]
["kártológép",63]
["könyvkötő gép",64]
["lemezcsiszoló gép",65]
["mosó-, szárító automata",66]
["nyomdai fotógép",67]
["nyomtató automata",68]
["papír és karton gyártó gépsor",69]
["présgép",70]
["rétegeltlemez prés",71]
["sajtoló szerszám, dombornyomó prés",72]
["sajtoló-, vágó-, lyukasztógép",73]
["szabászgép",74]
["szárító berendezés",75]
["szárító-, impregnáló berendezés",76]
["szedő-, betüöntő gép",77]
["szitanyomó-, flexonyomógép",78]
["szűrő-, elszívó berendezés",79]
["tekercsről nyomtató rotációs gép",80]
["vágógép/gyorsvágó",81]
["varrógép",82]
["vegytisztító automata",83]
[null,84]
["--- 4.) Élelmiszeripari-, raktározás és logisztikai gépek; épületgépészet ---",85]
["csak fűtés",86]
["Csőposta (iratszállító berendezés)",87]
["Egyenirányító, teleptöltő",88]
["Elektromos motor",89]
["emelővillás targonca",90]
["erjesztő szekrény ",91]
["ferdepályás felvonó",92]
["főzőüst",93]
["füstölő",94]
["fűtés és melegvíz",95]
["Generátor",96]
["gyümölcsprés, szűrő-, ülepítő berendezés",97]
["hús daraboló-, daráló- és egyéb aprítógép",98]
["Hűtőgép (fagylaltkészítő gép)",99]
["Hűtőkamra",100]
["Hűtőpult",101]
["Kapcsoló berendezés, állomás",102]
["Klímaberendezés",103]
["Konyhagép: telepített",104]
["Lift",105]
["Melegvíz tároló (bojler)",106]
["mobil mérleg",107]
["Mozgólépcső",108]
["Palack- és hordómosó berendezés",109]
["Pálinkafőző (lepárló)",110]
["Páternoszter",111]
["Porszívó (ipari)",112]
["raktári emelő berendezés",113]
["sütőkemence ",114]
["szállítószalag, szállítócsiga",115]
["szárító berendezés ",116]
["Szellőztető berendezés",117]
["szeparátor, centrifuga ",118]
["Szivattyú",119]
["telepített mérleg",120]
["tésztagyúró-, tésztakeverő berendezés",121]
[null,122]
[null,123]
[null,124]
[null,125]
[null,126]
[null,127]
[null,128]
[null,129]
[null,130]
[null,131]
[null,132]
[null,133]
[null,134]
[null,135]
[null,136]
[null,137]
[null,138]
[null,139]